Workbook

Sheet Cover
A1: =RIGHT(CELL("filename", $A$1), LEN(CELL("filename", $A$1)) - SEARCH("]", CELL("filename", $A$1))) -> Cover
A3: Workbook title: | B3: RPI-CPIH wedge true up
A4: Version: | B4: 4
A5: Filename: | B5: RPI-CPIH-wedge-true-up-model-February-2020.xlsm
A6: Date: | B6: 2020-02-26
A7: Author: | B7: Ofwat
A8: Author contact information: | B8: PR19Reconciliationrulebook@ofwat.gov.uk
A11: Summary of workbook: | B11: This model performs the true up for differences between actual and forecast RPI-CPIH wedge.
B12: It isolates the effect of variances in the wedge, calculates adjustments to correct for the variance in the wedge, converts the adjustments from nominal to real terms and applies the time
B13: value of money adjustment to the revenue adjustment.
A15: Known limitations: | B15: 1. This model is subject to consultation and consequently may be subject to further changes.
A17: Instructions:
A18: Track | B18: To store Track in the Track sheet, follow the steps mentioned below:
A20: Using Macro | B20: Please follow the steps mentioned below for storing Track using a macro:
A22: Step 1 - | B22: Go to the Track sheet and press "Store Outputs" button to save the track for new case >>>
B23: =Track!$E$3 -> Store Outputs
A25: Step 2 - | B25: A dialog box "Enter the label for the new track column" will appear, type the new track label (For ex: version name like "01A"), the label will appear in row 5.
A27: Step 3 - | B27: A new dialog box "Enter the comment for the new track" will appear, write the brief description of the change done in the model. The description will be updated in row 164.
A29: Step 4 - | B29: Press enter, a new track column will appear before the last stored track:
A31: Step 5 - | B31: Review the difference between stored cases and active case (col H) by selecting the stored case in cell H5 >>>
B32: =Track!$H$5 -> Nil inputs
A34: Manual steps | B34: Please follow the steps mentioned below for storing Track manually:
A36: Step 1 - | B36: Go to last stored column of 'Track' sheet
B37: Select the column by pressing Ctrl + Spacebar and Copy (Ctrl + C). Then insert a new column after the last stored column by pressing Alt, I, E
A39: Step 2 - | B39: Select the newly inserted column (Ctrl + Spacebar) and delete the previously stored values from this column by pressing Delete button
A41: Step 3 - | B41: Go to active track column (H column)
B42: =Track!$H$5 -> Nil inputs
B43: Select the range from H6 till 'do not delete row - range end' row and Copy (Ctrl + C)
A45: Step 4 - | B45: Paste the selected values (Alt E, S, V) in newly inserted column
A47: Step 5 - | B47: Update 'New track name' in row 5 of newly inserted column. Then select 'New track name' from the dropdown list present in H5.
A49: Step 6 - | B49: Review the difference between stored cases and active case (col H) by selecting the stored case in cell H5.
B50: =Track!$H$5 -> Nil inputs
A53: Amendments:
B54: 'InpR' - New input items included for RPI and CPIH monthly index values, financing cost index and Real CPIH based WACC.
B55: 'Index' - New sheet to calculate indexation factors based on input RPI and CPIH monthly index values.
B56: 'Calcs' - Include calculations to express key values in real terms and to apply time value of money adjustment to the revenue adjustments for run-off and return.
B57: 'Adjustments' - New sheet to collate outputs
A60: References:
B61: Forecast RPI and CPIH index values included in the final determination
B62: Actual RPI and CPIH index values published by ONS
B63: RPI-indexed RCV initial balances as at 1 April 2020 included in the final determination
B64: RCV run-off rates included in the final determination
B65: Real RPI based WACC included in the final determination
B66: Real CPIH based WACC included in the final determination
A69: Error Checks: | C69: RAG status / Variance
B70: Error check status | C70: =Checks!$F$9 -> 0
B71: Input check status | C71: =InpC!$J$10 -> 0
B72: Track check status | C72: =Checks!$F$18 -> 15
A75: Feedback: | B75: We would welcome feedback on this workbook. Please send any feedback to the following email address:
B76: PR19Reconciliationrulebook@ofwat.gov.uk
A79: END OF SHEET

Sheet Style Guide
A1: =RIGHT(CELL("filename", $A$1), LEN(CELL("filename", $A$1)) - SEARCH("]", CELL("filename", $A$1))) -> Style Guide
A4: SHEET TABS
E6: Light Yellow | G6: Input sheets
E8: No colour (default Excel tab colour) | G8: Calculation and documentation sheets
E10: Pale Blue | G10: Key output sheets
E12: Turquoise | G12: Quality control sheets
E14: Yellow | G14: To be completed, temporary, restructured, or deleted
A17: COLOUR
B19: Font colour only
E20: Blue font | G20: Imported from another sheet
E22: Red font | G22: Exported to another sheet (except from Input sheets)
E24: Black font | G24: Within sheet link or calculation
B26: Font + shade combinations
E27: Black font + Light Yellow shade | G27: Inputs
E29: Black font + Light Grey shade on entire row | G29: Within-worksheet counter-flow
E31: Blue font + Light Grey shade on entire row | G31: Between-worksheet counter-flow
E33: Empty Cell with Light Grey shade | G33: Empty cells being deliberately referenced
B35: Other
E36: Black font + Pale Blue shade on entire row | G36: Section separator
E38: Light Turquoise shade | G38: Stored/dead/hard coded outputs
E40: Tan shade | G40: Pre-model time line actuals
E42: Yellow shade | G42: Work in progress / temporary
E44: Lime shade | G44: Values or logic to be reviewed
B46: Error checks & alerts
E47: Green shade | G47: OK
E49: Red shade | G49: Error
E51: Gold shade | G51: Alert
A54: ABBREVIATIONS
E56: chks | G56: Checks
E57: £ | G57: Great Britain Pound
E58: IRE | G58: Infrastructure renewal expenditure
E59: incl | G59: Including
E60: m | G60: Million
E61: WACC | G61: Weighted average cost of capital
A64: NAMES
E66: CHK_TOL | G66: =InpC!F41
E67: LIVE_RESULTS | G67: =Track!$H$6:$H$175
E68: START_TRACK_STORE | G68: =Track!$M$5
E69: TRACK_ACTIVE | G69: =Track!$H$5
E70: TRACK_COMMENT_START | G70: =Track!$M$177
E71: TRK_COMMENT | G71: =Track!$E$177
E72: TRK_TOL | G72: =InpC!$F$42
A74: LIST OF MACROS USED
E76: CAPTURE_TRACK | G76: see front page for instructions
A78: END

Sheet ToC
A1: =RIGHT(CELL("filename", $A$1), LEN(CELL("filename", $A$1)) - SEARCH("]", CELL("filename", $A$1))) -> ToC
B3: ASSUMPTIONS | D3: INPUTS | F3: CALCULATIONS | H3: OUTPUTS | J3: Quality Control
B5: =Cover!$A$1 -> Cover | D5: =InpC!$A$1 -> InpC | F5: =Time!A$1 -> Time | H5: =Adjustments!$A$1 -> Adjustments | J5: =Track!$A$1 -> Track
B6: Model documentation sheet | D6: Inputs - column format | F6: Flags, part period factors (PPFs) and dates | H6: Key outputs | J6: Track store
B8: ='Style Guide'!$A$1 -> Style Guide | D8: =InpR!$A$1 -> InpR | F8: =Index!$A$1 -> Index | J8: =Checks!$A$1 -> Checks
B9: Explanation of different formatting types | D9: Inputs - row format | F9: RPI and CPIH indexation | J9: Checks
B11: =$A$1 -> ToC | F11: =Calcs!$A$1 -> Calcs
B12: Table of contents | F12: Calculation of true up
A29: END

Sheet InpC
A1: =RIGHT(CELL("filename", $A$1), LEN(CELL("filename", $A$1)) - SEARCH("]", CELL("filename", $A$1))) -> InpC
F2: =Checks!$F$9 -> 0 | G2: Error chks
F3: =InpC!$J$10 -> 0 | G3: Input Error
F4: =Checks!$F$18 -> 15 | G4: Track checks
E6: Option Count | F6: 1 | G6: count | J6: =MATCH($F$6, K6:Q6, 0) -> 2 | L6: 1 | M6: =L6 + 1 -> 2 | N6: =M6 + 1 -> 3 | O6: =N6 + 1 -> 4 | P6: =O6 + 1 -> 5
E7: Comparision Option Count | F7: 1 | G7: count | J7: =MATCH($F$7, K6:Q6, 0) -> 2
F8: Constant | G8: Unit | H8: Comment
E10: Total Comparison Column Differences | J10: =SUM(J14:J44) -> 0
E12: Option Name | L12: Input 1 | M12: Input 2 | N12: Input 3 | O12: Input 4 | P12: Input 5
E14: [don't delete row]
A16: TIME
E18: First date of time ruler | F18: =INDEX(K18:Q18, J$6) -> 2017-04-01 | G18: date | J18: =IF(F18 = INDEX(K18:CU18, J$7), 0, 1) -> 0 | L18: 2017-04-01 | M18: 2017-04-01 | N18: 2017-04-01 | O18: 2017-04-01 | P18: 2017-04-01
F19: =INDEX(K19:Q19, J$6) -> 00:00:00 | J19: 0
E20: Last Pre Forecast Date | F20: 2020-03-31 | G20: date | J20: 0 | L20: 2020-03-31 | M20: 2020-03-31 | N20: 2020-03-31 | O20: 2020-03-31 | P20: 2020-03-31
F21: 00:00:00 | J21: 0
E22: Acquisition date (midnight) | F22: 2020-03-31 | G22: date | J22: 0 | L22: 2020-03-31 | M22: 2020-03-31 | N22: 2020-03-31 | O22: 2020-03-31 | P22: 2020-03-31
E23: Length of forecast period | F23: 5 | G23: years | J23: 0 | L23: 5 | M23: 5 | N23: 5 | O23: 5 | P23: 5
E24: Last forecast date | F24: 2025-03-31 | G24: date | J24: 0 | L24: =DATE(YEAR(L22)+L23,MONTH(L22),DAY(L22)) -> 2025-03-31 | M24: =DATE(YEAR(M22)+M23,MONTH(M22),DAY(M22)) -> 2025-03-31 | N24: =DATE(YEAR(N22)+N23,MONTH(N22),DAY(N22)) -> 2025-03-31 | O24: =DATE(YEAR(O22)+O23,MONTH(O22),DAY(O22)) -> 2025-03-31 | P24: =DATE(YEAR(P22)+P23,MONTH(P22),DAY(P22)) -> 2025-03-31
F25: 00:00:00 | J25: 0
F26: 00:00:00 | J26: 0
E27: Operation Start Date (midnight) | F27: 2021-03-31 | G27: date | J27: 0 | L27: 2021-03-31 | M27: 2021-03-31 | N27: 2021-03-31 | O27: 2021-03-31 | P27: 2021-03-31
E28: Operation Finish Date (midnight) | F28: 2025-03-31 | G28: date | J28: 0 | L28: 2025-03-31 | M28: 2025-03-31 | N28: 2025-03-31 | O28: 2025-03-31 | P28: 2025-03-31
E29: First Modelling Column Financial Year Number | F29: =INDEX(K29:Q29, J$6) -> 2018 | G29: year | J29: 0 | L29: 2018 | M29: 2018 | N29: 2018 | O29: 2018 | P29: 2018
E30: Financial Year End Month Number | F30: 3 | G30: month # | J30: 0 | L30: 3 | M30: 3 | N30: 3 | O30: 3 | P30: 3
J31: 0
E32: Forecast Nominal RCV - initial balance | F32: =INDEX(K32:Q32, J$6) -> 0 | G32: £m | J32: 0
J33: 0
E34: Actual Nominal RCV - initial balance | F34: 0 | G34: £m | J34: 0 | L34: =L$32 -> 0 | M34: =M$32 -> 0 | N34: 0 | O34: 0 | P34: 0
J35: 0
E36: True up Nominal RCV - initial balance | F36: 0 | G36: £m | J36: 0 | L36: =L$32 -> 0 | M36: =M$32 -> 0 | N36: 0 | O36: 0 | P36: 0
J37: 0
A38: NON CHANGEABLE INPUTS | F38: =INDEX(K38:Q38, J$6) -> 0 | J38: 0
F39: 0 | J39: 0
B40: Model Tolerance | F40: 0 | J40: 0
E41: Model Check Tolerance Level | F41: 0.001 | G41: tolerance | J41: 0 | L41: 0.001 | M41: 0.001 | N41: 0.001 | O41: 0.001 | P41: 0.001
E42: Track Tolerance Level | F42: 0.001 | G42: tolerance | J42: 0 | L42: 0.001 | M42: 0.001 | N42: 0.001 | O42: 0.001 | P42: 0.001
F43: =INDEX(K43:Q43, J$6) -> 00:00:00 | J43: 0
E44: [don't delete row]

Sheet InpR
A1: =RIGHT(CELL("filename", $A$1), LEN(CELL("filename", $A$1)) - SEARCH("]", CELL("filename", $A$1))) -> InpR
E2: =Time!E$22 -> Model Period BEG | F2: =Checks!$F$9 -> 0 | G2: Error chks | J2: =Time!J$22 -> 2017-04-01 | K2: =Time!K$22 -> 2018-04-01 | L2: =Time!L$22 -> 2019-04-01 | M2: =Time!M$22 -> 2020-04-01 | N2: =Time!N$22 -> 2021-04-01 | O2: =Time!O$22 -> 2022-04-01 | P2: =Time!P$22 -> 2023-04-01 | Q2: =Time!Q$22 -> 2024-04-01 | R2: =Time!R$22 -> 2025-04-01
E3: =Time!E$23 -> Model Period END | F3: =InpC!$J$10 -> 0 | G3: Input Error | J3: =Time!J$23 -> 2018-03-31 | K3: =Time!K$23 -> 2019-03-31 | L3: =Time!L$23 -> 2020-03-31 | M3: =Time!M$23 -> 2021-03-31 | N3: =Time!N$23 -> 2022-03-31 | O3: =Time!O$23 -> 2023-03-31 | P3: =Time!P$23 -> 2024-03-31 | Q3: =Time!Q$23 -> 2025-03-31 | R3: =Time!R$23 -> 2026-03-31
E4: =Time!E$59 -> Pre Forecast vs Forecast | F4: =Checks!$F$18 -> 15 | G4: Track checks | J4: =Time!J$59 -> Pre Fcst | K4: =Time!K$59 -> Pre Fcst | L4: =Time!L$59 -> Pre Fcst | M4: =Time!M$59 -> Forecast | N4: =Time!N$59 -> Forecast | O4: =Time!O$59 -> Forecast | P4: =Time!P$59 -> Forecast | Q4: =Time!Q$59 -> Forecast | R4: =Time!R$59 -> Post-Fcst
E5: =Time!E$86 -> Financial Year Ending | J5: =Time!J$86 -> 2018 | K5: =Time!K$86 -> 2019 | L5: =Time!L$86 -> 2020 | M5: =Time!M$86 -> 2021 | N5: =Time!N$86 -> 2022 | O5: =Time!O$86 -> 2023 | P5: =Time!P$86 -> 2024 | Q5: =Time!Q$86 -> 2025 | R5: =Time!R$86 -> 2026
E6: =Time!E$11 -> Model column counter | J6: =Time!J$11 -> 1 | K6: =Time!K$11 -> 2 | L6: =Time!L$11 -> 3 | M6: =Time!M$11 -> 4 | N6: =Time!N$11 -> 5 | O6: =Time!O$11 -> 6 | P6: =Time!P$11 -> 7 | Q6: =Time!Q$11 -> 8 | R6: =Time!R$11 -> 9
F7: Constant | G7: Unit | H7: Total
A9: FINAL DETERMINATION ASSUMPTIONS
B10: RPI - final determination
E11: RPI: April - index - final determination | G11: index | J11: 270.6 | K11: 279.7 | L11: 288.2 | M11: 296.8199438 | N11: 305.328654 | O11: 314.6919344 | P11: 324.7620763 | Q11: 335.1544628 | R11: 345.2090967
E12: RPI: May - index - final determination | G12: index | J12: 271.7 | K12: 280.7 | L12: 289.2 | M12: 297.5037914 | N12: 306.0816768 | O12: 315.5190509 | P12: 325.6156605 | Q12: 336.0353617 | R12: 346.1164225
E13: RPI: June - index - final determination | G13: index | J13: 272.3 | K13: 281.5 | L13: 289.6 | M13: 298.1892145 | N13: 306.8365568 | O13: 316.3483413 | P13: 326.4714882 | Q13: 336.9185758 | R13: 347.0261331
E14: RPI: July - index - final determination | G14: index | J14: 272.9 | K14: 281.7 | L14: 289.5 | M14: 298.8762168 | N14: 307.5932985 | O14: 317.1798113 | P14: 327.3295653 | Q14: 337.8041114 | R14: 347.9382347
E15: RPI: August - index - final determination | G15: index | J15: 274.7 | K15: 284.2 | L15: 291.5 | M15: 299.5648018 | N15: 308.3519066 | O15: 318.0134667 | P15: 328.1898977 | Q15: 338.6919744 | R15: 348.8527336
E16: RPI: September - index - final determination | G16: index | J16: 275.1 | K16: 284.1 | L16: 292.1478959 | M16: 300.2549733 | N16: 309.1123856 | O16: 318.8493133 | P16: 329.0524913 | Q16: 339.582171 | R16: 349.7696362
E17: RPI: October - index - final determination | G17: index | J17: 275.3 | K17: 284.5 | L17: 292.7972317 | M17: 300.9467349 | N17: 309.8747401 | O17: 319.6873567 | P17: 329.9173521 | Q17: 340.4747074 | R17: 350.6889486
E18: RPI: November - index - final determination | G18: index | J18: 275.8 | K18: 284.6 | L18: 293.4480109 | M18: 301.6400903 | N18: 310.6389748 | O18: 320.5276028 | P18: 330.7844861 | Q18: 341.3695897 | R18: 351.6106773
E19: RPI: December - index - final determination | G19: index | J19: 278.1 | K19: 285.6 | L19: 294.1002364 | M19: 302.335043 | N19: 311.4050943 | O19: 321.3700574 | P19: 331.6538992 | Q19: 342.266824 | R19: 352.5348287
E20: RPI: January - index - final determination | G20: index | J20: 276 | K20: 283 | L20: 294.777818 | M20: 303.0806828 | N20: 312.2235719 | O20: 322.2147261 | P20: 332.5255974 | Q20: 343.1664165 | R20: 353.461409
E21: RPI: February - index - final determination | G21: index | J21: 278.1 | K21: 285 | L21: 295.4569607 | M21: 303.8281615 | N21: 313.0442006 | O21: 323.061615 | P21: 333.3995867 | Q21: 344.0683735 | R21: 354.3904247
E22: RPI: March - index - final determination | G22: index | J22: 278.3 | K22: 285.1 | L22: 296.1376681 | M22: 304.5774838 | N22: 313.8669862 | O22: 323.9107298 | P22: 334.2758732 | Q22: 344.9727011 | R22: 355.3218821
B24: CPI(H) - final determination
E25: CPI(H): April - index - final determination | G25: index | J25: 103.2 | K25: 105.5 | L25: 107.6 | M25: 109.7033547 | N25: 111.8974218 | O25: 114.1726572 | P25: 116.570283 | Q25: 119.018259 | R25: 121.3986242
E26: CPI(H): May - index - final determination | G26: index | J26: 103.5 | K26: 105.9 | L26: 107.9 | M26: 109.8845387 | N26: 112.0822295 | O26: 114.3705617 | P26: 116.7723435 | Q26: 119.2245627 | R26: 121.609054
E27: CPI(H): June - index - final determination | G27: index | J27: 103.5 | K27: 105.9 | L27: 107.9 | M27: 110.066022 | N27: 112.2673424 | O27: 114.5688092 | P27: 116.9747542 | Q27: 119.431224 | R27: 121.8198485
E28: CPI(H): July - index - final determination | G28: index | J28: 103.5 | K28: 105.9 | L28: 108 | M28: 110.247805 | N28: 112.4527611 | O28: 114.7674004 | P28: 117.1775158 | Q28: 119.6382436 | R28: 122.0310085
E29: CPI(H): August - index - final determination | G29: index | J29: 104 | K29: 106.5 | L29: 108.3 | M29: 110.4298882 | N29: 112.638486 | O29: 114.9663357 | P29: 117.3806288 | Q29: 119.845622 | R29: 122.2425344
E30: CPI(H): September - index - final determination | G30: index | J30: 104.3 | K30: 106.6 | L30: 108.4699996 | M30: 110.6122721 | N30: 112.8245176 | O30: 115.165616 | P30: 117.5840939 | Q30: 120.0533599 | R30: 122.4544271
E31: CPI(H): October - index - final determination | G31: index | J31: 104.4 | K31: 106.7 | L31: 108.6402661 | M31: 110.7949573 | N31: 113.0108564 | O31: 115.3652416 | P31: 117.7879117 | Q31: 120.2614578 | R31: 122.666687
E32: CPI(H): November - index - final determination | G32: index | J32: 104.7 | K32: 106.9 | L32: 108.8107998 | M32: 110.9779442 | N32: 113.1975031 | O32: 115.5652133 | P32: 117.9920827 | Q32: 120.4699165 | R32: 122.8793148
E33: CPI(H): December - index - final determination | G33: index | J33: 105 | K33: 107.1 | L33: 108.9816012 | M33: 111.1612333 | N33: 113.3844579 | O33: 115.7655316 | P33: 118.1966077 | Q33: 120.6787365 | R33: 123.0923112
E34: CPI(H): January - index - final determination | G34: index | J34: 104.5 | K34: 106.4 | L34: 109.1615932 | M34: 111.3448251 | N34: 113.5809962 | O34: 115.9661971 | P34: 118.4014872 | Q34: 120.8879184 | R34: 123.3056768
E35: CPI(H): February - index - final determination | G35: index | J35: 104.9 | K35: 106.8 | L35: 109.3418825 | M35: 111.5287201 | N35: 113.7778751 | O35: 116.1672104 | P35: 118.6067218 | Q35: 121.097463 | R35: 123.5194123
E36: CPI(H): March - index - final determination | G36: index | J36: 105.1 | K36: 107 | L36: 109.5224695 | M36: 111.7129189 | N36: 113.9750952 | O36: 116.3685722 | P36: 118.8123122 | Q36: 121.3073708 | R36: 123.7335182
A38: OUTTURN INFLATION
B39: RPI - outturn
E40: RPI: April - index - actual (including forecast) | G40: index
E41: RPI: May - index - actual (including forecast) | G41: index
E42: RPI: June - index - actual (including forecast) | G42: index
E43: RPI: July - index - actual (including forecast) | G43: index
E44: RPI: August - index - actual (including forecast) | G44: index
E45: RPI: September - index - actual (including forecast) | G45: index
E46: RPI: October - index - actual (including forecast) | G46: index
E47: RPI: November - index - actual (including forecast) | G47: index
E48: RPI: December - index - actual (including forecast) | G48: index
E49: RPI: January - index - actual (including forecast) | G49: index
E50: RPI: February - index - actual (including forecast) | G50: index
E51: RPI: March - index - actual (including forecast) | G51: index
B53: CPI(H) - outturn
E54: CPI(H): April - index - actual (including forecast) | G54: index
E55: CPI(H): May - index - actual (including forecast) | G55: index
E56: CPI(H): June - index - actual (including forecast) | G56: index
E57: CPI(H): July - index - actual (including forecast) | G57: index
E58: CPI(H): August - index - actual (including forecast) | G58: index
E59: CPI(H): September - index - actual (including forecast) | G59: index
E60: CPI(H): October - index - actual (including forecast) | G60: index
E61: CPI(H): November - index - actual (including forecast) | G61: index
E62: CPI(H): December - index - actual (including forecast) | G62: index
E63: CPI(H): January - index - actual (including forecast) | G63: index
E64: CPI(H): February - index - actual (including forecast) | G64: index
E65: CPI(H): March - index - actual (including forecast) | G65: index
E67: Financing cost index | G67: index | M67: 4 | N67: 3 | O67: 2 | P67: 1 | Q67: 0
E69: =InpC!E$6 -> Option Count | F69: =InpC!F$6 -> 1 | G69: =InpC!G$6 -> count
A71: ACTIVE INPUTS
E73: RCV run-off rate | F73: 1 | G73: %
E74: RCV run-off rate | F74: 2 | G74: %
E75: RCV run-off rate | F75: 3 | G75: %
E76: RCV run-off rate | F76: 4 | G76: %
E77: RCV run-off rate | F77: 5 | G77: %
E78: RCV run-off rate | G78: % | J78: =INDEX(J73:J77,$F$69) -> 0 | K78: =INDEX(K73:K77,$F$69) -> 0 | L78: =INDEX(L73:L77,$F$69) -> 0 | M78: =INDEX(M73:M77,$F$69) -> 0 | N78: =INDEX(N73:N77,$F$69) -> 0 | O78: =INDEX(O73:O77,$F$69) -> 0 | P78: =INDEX(P73:P77,$F$69) -> 0 | Q78: =INDEX(Q73:Q77,$F$69) -> 0 | R78: =INDEX(R73:R77,$F$69) -> 0
E80: Real RPI based WACC | F80: 1 | G80: % | T80: 0.02919576382 | U80: 0.02919576382 | V80: 0.02919576382 | W80: 0.02919576382 | X80: 0.02919576382 | Y80: 0.02919576382 | Z80: 0.02919576382
E81: Real RPI based WACC | F81: 2 | G81: %
E82: Real RPI based WACC | F82: 3 | G82: %
E83: Real RPI based WACC | F83: 4 | G83: %
E84: Real RPI based WACC | F84: 5 | G84: %
E85: Real RPI based WACC | G85: % | J85: =INDEX(J80:J84,$F$69) -> 0 | K85: =INDEX(K80:K84,$F$69) -> 0 | L85: =INDEX(L80:L84,$F$69) -> 0 | M85: =INDEX(M80:M84,$F$69) -> 0 | N85: =INDEX(N80:N84,$F$69) -> 0 | O85: =INDEX(O80:O84,$F$69) -> 0 | P85: =INDEX(P80:P84,$F$69) -> 0 | Q85: =INDEX(Q80:Q84,$F$69) -> 0 | R85: =INDEX(R80:R84,$F$69) -> 0
E87: Real CPIH based WACC | F87: 1 | G87: % | T87: 0.02919576382 | U87: 0.02919576382 | V87: 0.02919576382 | W87: 0.02919576382 | X87: 0.02919576382 | Y87: 0.02919576382 | Z87: 0.02919576382
E88: Real CPIH based WACC | F88: 2 | G88: %
E89: Real CPIH based WACC | F89: 3 | G89: %
E90: Real CPIH based WACC | F90: 4 | G90: %
E91: Real CPIH based WACC | F91: 5 | G91: %
E92: Real CPIH based WACC | G92: % | J92: =INDEX(J87:J91,$F$69) -> 0 | K92: 0 | L92: 0 | M92: =INDEX(M87:M91,$F$69) -> 0 | N92: =INDEX(N87:N91,$F$69) -> 0 | O92: 0 | P92: 0 | Q92: 0 | R92: 0
A94: END

Sheet Time
A1: =RIGHT(CELL("filename", $A$1), LEN(CELL("filename", $A$1)) - SEARCH("]", CELL("filename", $A$1))) -> Time
E2: =Time!E$23 -> Model Period END | F2: =Checks!$F$9 -> 0 | G2: Error chks | J2: =Time!J$23 -> 2018-03-31 | K2: =Time!K$23 -> 2019-03-31 | L2: =Time!L$23 -> 2020-03-31 | M2: =Time!M$23 -> 2021-03-31 | N2: =Time!N$23 -> 2022-03-31 | O2: =Time!O$23 -> 2023-03-31 | P2: =Time!P$23 -> 2024-03-31 | Q2: =Time!Q$23 -> 2025-03-31 | R2: =Time!R$23 -> 2026-03-31
E3: =Time!E$59 -> Pre Forecast vs Forecast | F3: =InpC!$J$10 -> 0 | G3: Input Error | J3: =Time!J$59 -> Pre Fcst | K3: =Time!K$59 -> Pre Fcst | L3: =Time!L$59 -> Pre Fcst | M3: =Time!M$59 -> Forecast | N3: =Time!N$59 -> Forecast | O3: =Time!O$59 -> Forecast | P3: =Time!P$59 -> Forecast | Q3: =Time!Q$59 -> Forecast | R3: =Time!R$59 -> Post-Fcst
E4: =Time!E$86 -> Financial Year Ending | F4: =Checks!$F$18 -> 15 | G4: Track checks | J4: =Time!J$86 -> 2018 | K4: =Time!K$86 -> 2019 | L4: =Time!L$86 -> 2020 | M4: =Time!M$86 -> 2021 | N4: =Time!N$86 -> 2022 | O4: =Time!O$86 -> 2023 | P4: =Time!P$86 -> 2024 | Q4: =Time!Q$86 -> 2025 | R4: =Time!R$86 -> 2026
E6: =Time!E$11 -> Model column counter | F6: Constant | G6: Unit | H6: Total | J6: =Time!J$11 -> 1 | K6: =Time!K$11 -> 2 | L6: =Time!L$11 -> 3 | M6: =Time!M$11 -> 4 | N6: =Time!N$11 -> 5 | O6: =Time!O$11 -> 6 | P6: =Time!P$11 -> 7 | Q6: =Time!Q$11 -> 8 | R6: =Time!R$11 -> 9
A8: MODEL PERIOD
B10: Model Column Counter
E11: Model column counter | G11: counter | J11: =I11 + 1 -> 1 | K11: 2 | L11: 3 | M11: 4 | N11: 5 | O11: 6 | P11: 7 | Q11: 8 | R11: 9
E12: Model Column Total | F12: =MAX(J11:BZ11) -> 9 | G12: column
E14: =E$11 -> Model column counter | F14: 0 | G14: counter | H14: 0 | I14: 0 | J14: 1 | K14: 2 | L14: 3 | M14: 4 | N14: 5 | O14: 6 | P14: 7 | Q14: 8 | R14: 9
E15: First model column flag | G15: flag | H15: =SUM(J15:BZ15) -> 1 | J15: =IF( J14 = 1, 1, 0) -> 1 | K15: 0 | L15: 0 | M15: 0 | N15: 0 | O15: 0 | P15: 0 | Q15: 0 | R15: 0
E17: =InpC!E$18 -> First date of time ruler | F17: =InpC!F$18 -> 2017-04-01 | G17: =InpC!G$18 -> date
E18: First model period BEG | F18: =DATE(YEAR(F17), MONTH(F17), 1) -> 2017-04-01 | G18: month
E20: =E$18 -> First model period BEG | F20: =F$18 -> 2017-04-01 | G20: =G$18 -> month
E21: =E$15 -> First model column flag | F21: 0 | G21: flag | H21: 1 | I21: 0 | J21: 1 | K21: 0 | L21: 0 | M21: 0 | N21: 0 | O21: 0 | P21: 0 | Q21: 0 | R21: 0
E22: Model Period BEG | G22: date | J22: =IF( J21 = 1, $F20, I23 + 1) -> 2017-04-01 | K22: 2018-04-01 | L22: 2019-04-01 | M22: 2020-04-01 | N22: 2021-04-01 | O22: 2022-04-01 | P22: 2023-04-01 | Q22: 2024-04-01 | R22: 2025-04-01
E23: Model Period END | G23: date | J23: =DATE(YEAR(J22), MONTH(J22) + 12, DAY(1) - 1) -> 2018-03-31 | K23: 2019-03-31 | L23: 2020-03-31 | M23: 2021-03-31 | N23: 2022-03-31 | O23: 2023-03-31 | P23: 2024-03-31 | Q23: 2025-03-31 | R23: 2026-03-31
E25: =E$23 -> Model Period END | F25: 00:00:00 | G25: date | H25: 00:00:00 | I25: 00:00:00 | J25: 2018-03-31 | K25: 2019-03-31 | L25: 2020-03-31 | M25: 2021-03-31 | N25: 2022-03-31 | O25: 2023-03-31 | P25: 2024-03-31 | Q25: 2025-03-31 | R25: 2026-03-31
D26: less | E26: =E$22 -> Model Period BEG | F26: 00:00:00 | G26: date | H26: 00:00:00 | I26: 00:00:00 | J26: 2017-04-01 | K26: 2018-04-01 | L26: 2019-04-01 | M26: 2020-04-01 | N26: 2021-04-01 | O26: 2022-04-01 | P26: 2023-04-01 | Q26: 2024-04-01 | R26: 2025-04-01
E27: Days in Model Period | G27: days | H27: =SUM(J27:BZ27) -> 3287 | J27: =J25 - J26 + 1 -> 365 | K27: 365 | L27: 366 | M27: 365 | N27: 365 | O27: 365 | P27: 366 | Q27: 365 | R27: 365
A30: PRE FORECAST PERIOD
E32: =InpC!E$20 -> Last Pre Forecast Date | F32: =InpC!F$20 -> 2020-03-31 | G32: =InpC!G$20 -> date
E33: =E$23 -> Model Period END | F33: 00:00:00 | G33: date | H33: 00:00:00 | I33: 00:00:00 | J33: 2018-03-31 | K33: 2019-03-31 | L33: 2020-03-31 | M33: 2021-03-31 | N33: 2022-03-31 | O33: 2023-03-31 | P33: 2024-03-31 | Q33: 2025-03-31 | R33: 2026-03-31
E34: Last Pre Forecast Flag | G34: flag | H34: =SUM(J34:BZ34) -> 1 | J34: =IF(J33 = $F32, 1, 0) -> 0 | K34: 0 | L34: 1 | M34: 0 | N34: 0 | O34: 0 | P34: 0 | Q34: 0 | R34: 0
E35: Pre Forecast Period Flag | G35: flag | H35: =SUM(J35:BZ35) -> 3 | J35: =IF($F32 >= J33, 1, 0) -> 1 | K35: 1 | L35: 1 | M35: 0 | N35: 0 | O35: 0 | P35: 0 | Q35: 0 | R35: 0
E36: Pre Forecast Period Total | F36: =SUM(J35:BZ35) -> 3 | G36: columns
E38: =InpC!E$22 -> Acquisition date (midnight) | F38: =InpC!F$22 -> 2020-03-31 | G38: =InpC!G$22 -> date
E39: =E$23 -> Model Period END | F39: 00:00:00 | G39: date | H39: 00:00:00 | I39: 00:00:00 | J39: 2018-03-31 | K39: 2019-03-31 | L39: 2020-03-31 | M39: 2021-03-31 | N39: 2022-03-31 | O39: 2023-03-31 | P39: 2024-03-31 | Q39: 2025-03-31 | R39: 2026-03-31
E40: Acquisition / initial balance date flag | G40: flag | H40: =SUM(J40:BZ40) -> 1 | J40: =IF(J39 = $F38, 1, 0) -> 0 | K40: 0 | L40: 1 | M40: 0 | N40: 0 | O40: 0 | P40: 0 | Q40: 0 | R40: 0
A43: FORECAST PERIOD
E45: =E$34 -> Last Pre Forecast Flag | F45: 0 | G45: flag | H45: 1 | I45: 0 | J45: 0 | K45: 0 | L45: 1 | M45: 0 | N45: 0 | O45: 0 | P45: 0 | Q45: 0 | R45: 0
E46: 1st Forecast Period Flag | G46: flag | H46: =SUM(J46:BZ46) -> 1 | J46: =I45 -> 0 | K46: 0 | L46: 0 | M46: 1 | N46: 0 | O46: 0 | P46: 0 | Q46: 0 | R46: 0
E48: =InpC!E$24 -> Last forecast date | F48: =InpC!F$24 -> 2025-03-31 | G48: =InpC!G$24 -> date
E49: =E$23 -> Model Period END | F49: 00:00:00 | G49: date | H49: 00:00:00 | I49: 00:00:00 | J49: 2018-03-31 | K49: 2019-03-31 | L49: 2020-03-31 | M49: 2021-03-31 | N49: 2022-03-31 | O49: 2023-03-31 | P49: 2024-03-31 | Q49: 2025-03-31 | R49: 2026-03-31
E50: Last Forecast Period Flag | G50: flag | H50: =SUM(J50:BZ50) -> 1 | J50: =IF(AND($F48 > I49, $F48 <= J49), 1, 0) -> 0 | K50: 0 | L50: 0 | M50: 0 | N50: 0 | O50: 0 | P50: 0 | Q50: 1 | R50: 0
E52: =E$46 -> 1st Forecast Period Flag | F52: 0 | G52: flag | H52: 1 | I52: 0 | J52: 0 | K52: 0 | L52: 0 | M52: 1 | N52: 0 | O52: 0 | P52: 0 | Q52: 0 | R52: 0
E53: =E$50 -> Last Forecast Period Flag | F53: 0 | G53: flag | H53: 1 | I53: 0 | J53: 0 | K53: 0 | L53: 0 | M53: 0 | N53: 0 | O53: 0 | P53: 0 | Q53: 1 | R53: 0
E54: Forecast Period Flag | G54: flag | H54: =SUM(J54:BZ54) -> 5 | J54: =J52 - I53 + I54 -> 0 | K54: 0 | L54: 0 | M54: 1 | N54: 1 | O54: 1 | P54: 1 | Q54: 1 | R54: 0
E55: Forecast Period Total | F55: =SUM(J54:BZ54) -> 5 | G55: columns
E57: =E$35 -> Pre Forecast Period Flag | F57: 0 | G57: flag | H57: 3 | I57: 0 | J57: 1 | K57: 1 | L57: 1 | M57: 0 | N57: 0 | O57: 0 | P57: 0 | Q57: 0 | R57: 0
E58: =E$54 -> Forecast Period Flag | F58: 0 | G58: flag | H58: 5 | I58: 0 | J58: 0 | K58: 0 | L58: 0 | M58: 1 | N58: 1 | O58: 1 | P58: 1 | Q58: 1 | R58: 0
E59: Pre Forecast vs Forecast | G59: flag | J59: =IF(J57 = 1, "Pre Fcst", IF(J58 = 1, "Forecast", "Post-Fcst")) -> Pre Fcst | K59: Pre Fcst | L59: Pre Fcst | M59: Forecast | N59: Forecast | O59: Forecast | P59: Forecast | Q59: Forecast | R59: Post-Fcst
A62: POST FORECAST PERIOD
E64: =E$50 -> Last Forecast Period Flag | F64: 0 | G64: flag | H64: 1 | I64: 0 | J64: 0 | K64: 0 | L64: 0 | M64: 0 | N64: 0 | O64: 0 | P64: 0 | Q64: 1 | R64: 0
E65: 1st Post Last Forecast Period Flag | G65: flag | H65: =SUM(J65:BZ65) -> 1 | J65: =I64 -> 0 | K65: 0 | L65: 0 | M65: 0 | N65: 0 | O65: 0 | P65: 0 | Q65: 0 | R65: 1
E67: =E$65 -> 1st Post Last Forecast Period Flag | F67: 0 | G67: flag | H67: 1 | I67: 0 | J67: 0 | K67: 0 | L67: 0 | M67: 0 | N67: 0 | O67: 0 | P67: 0 | Q67: 0 | R67: 1
E68: Post Forecast Period Flag | G68: flag | H68: =SUM(J68:BZ68) -> 1 | J68: =I68 + J67 -> 0 | K68: 0 | L68: 0 | M68: 0 | N68: 0 | O68: 0 | P68: 0 | Q68: 0 | R68: 1
E69: Post Forecast Period Total | F69: =SUM(J68:BZ68) -> 1 | G69: columns
A72: MODELLING PERIOD CHECK
E74: =E$12 -> Model Column Total | F74: =F$12 -> 9 | G74: =G$12 -> column
D75: less | E75: =E$36 -> Pre Forecast Period Total | F75: =F$36 -> 3 | G75: =G$36 -> columns
D76: less | E76: =E$55 -> Forecast Period Total | F76: =F$55 -> 5 | G76: =G$55 -> columns
D77: less | E77: =E$69 -> Post Forecast Period Total | F77: =F$69 -> 1 | G77: =G$69 -> columns
E78: Modelling Period Check | F78: =IF(F74 - SUM(F75:F77) <> 0, 1, 0) -> 0 | G78: check
A80: FINANCIAL YEAR
E82: =InpC!E29 -> First Modelling Column Financial Year Number | F82: =InpC!F29 -> 2018 | G82: =InpC!G29 -> year
E83: =InpC!E30 -> Financial Year End Month Number | F83: =InpC!F30 -> 3 | G83: =InpC!G30 -> month #
E84: =E$23 -> Model Period END | F84: 00:00:00 | G84: date | H84: 00:00:00 | I84: 00:00:00 | J84: 2018-03-31 | K84: 2019-03-31 | L84: 2020-03-31 | M84: 2021-03-31 | N84: 2022-03-31 | O84: 2023-03-31 | P84: 2024-03-31 | Q84: 2025-03-31 | R84: 2026-03-31
E85: =E$15 -> First model column flag | F85: 0 | G85: flag | H85: 1 | I85: 0 | J85: 1 | K85: 0 | L85: 0 | M85: 0 | N85: 0 | O85: 0 | P85: 0 | Q85: 0 | R85: 0
E86: Financial Year Ending | G86: year # | J86: =IF(J85 = 1, $F82, IF(J84 > (DATE(I86, $F83 + 1, 1) - 1), I86 + 1, I86)) -> 2018 | K86: =IF(K85 = 1, $F82, IF(K84 > (DATE(J86, $F83 + 1, 1) - 1), J86 + 1, J86)) -> 2019 | L86: 2020 | M86: 2021 | N86: 2022 | O86: 2023 | P86: 2024 | Q86: 2025 | R86: 2026
A89: END

Sheet Index
A1: =RIGHT(CELL("filename", $A$1), LEN(CELL("filename", $A$1)) - SEARCH("]", CELL("filename", $A$1))) -> Index
E2: =Time!E$23 -> Model Period END | F2: =Checks!$F$9 -> 0 | G2: Error chks | J2: =Time!J$23 -> 2018-03-31 | K2: =Time!K$23 -> 2019-03-31 | L2: =Time!L$23 -> 2020-03-31 | M2: =Time!M$23 -> 2021-03-31 | N2: =Time!N$23 -> 2022-03-31 | O2: =Time!O$23 -> 2023-03-31 | P2: =Time!P$23 -> 2024-03-31 | Q2: =Time!Q$23 -> 2025-03-31 | R2: =Time!R$23 -> 2026-03-31
E3: =Time!E$59 -> Pre Forecast vs Forecast | F3: =InpC!$J$10 -> 0 | G3: Input Error | J3: =Time!J$59 -> Pre Fcst | K3: =Time!K$59 -> Pre Fcst | L3: =Time!L$59 -> Pre Fcst | M3: =Time!M$59 -> Forecast | N3: =Time!N$59 -> Forecast | O3: =Time!O$59 -> Forecast | P3: =Time!P$59 -> Forecast | Q3: =Time!Q$59 -> Forecast | R3: =Time!R$59 -> Post-Fcst
E4: =Time!E$86 -> Financial Year Ending | F4: =Checks!$F$18 -> 15 | G4: Track checks | J4: =Time!J$86 -> 2018 | K4: =Time!K$86 -> 2019 | L4: =Time!L$86 -> 2020 | M4: =Time!M$86 -> 2021 | N4: =Time!N$86 -> 2022 | O4: =Time!O$86 -> 2023 | P4: =Time!P$86 -> 2024 | Q4: =Time!Q$86 -> 2025 | R4: =Time!R$86 -> 2026
E6: =Time!E$11 -> Model column counter | F6: Constant | G6: Unit | H6: Total | J6: =Time!J$11 -> 1 | K6: =Time!K$11 -> 2 | L6: =Time!L$11 -> 3 | M6: =Time!M$11 -> 4 | N6: =Time!N$11 -> 5 | O6: =Time!O$11 -> 6 | P6: =Time!P$11 -> 7 | Q6: =Time!Q$11 -> 8 | R6: =Time!R$11 -> 9
A9: FINAL DETERMINATION ASSUMPTIONS
B10: RPI - final determination
E11: =InpR!E$11 -> RPI: April - index - final determination | G11: =InpR!G$11 -> index | H11: =InpR!H$11 -> 0 | I11: =InpR!I$11 -> 0 | J11: =InpR!J$11 -> 270.6 | K11: =InpR!K$11 -> 279.7 | L11: =InpR!L$11 -> 288.2 | M11: =InpR!M$11 -> 296.8199438 | N11: =InpR!N$11 -> 305.328654 | O11: =InpR!O$11 -> 314.6919344 | P11: =InpR!P$11 -> 324.7620763 | Q11: =InpR!Q$11 -> 335.1544628 | R11: =InpR!R$11 -> 345.2090967
E12: =InpR!E$12 -> RPI: May - index - final determination | G12: =InpR!G$12 -> index | H12: =InpR!H$12 -> 0 | I12: =InpR!I$12 -> 0 | J12: =InpR!J$12 -> 271.7 | K12: =InpR!K$12 -> 280.7 | L12: =InpR!L$12 -> 289.2 | M12: =InpR!M$12 -> 297.5037914 | N12: =InpR!N$12 -> 306.0816768 | O12: =InpR!O$12 -> 315.5190509 | P12: =InpR!P$12 -> 325.6156605 | Q12: =InpR!Q$12 -> 336.0353617 | R12: =InpR!R$12 -> 346.1164225
E13: =InpR!E$13 -> RPI: June - index - final determination | G13: =InpR!G$13 -> index | H13: =InpR!H$13 -> 0 | I13: =InpR!I$13 -> 0 | J13: =InpR!J$13 -> 272.3 | K13: =InpR!K$13 -> 281.5 | L13: =InpR!L$13 -> 289.6 | M13: =InpR!M$13 -> 298.1892145 | N13: =InpR!N$13 -> 306.8365568 | O13: =InpR!O$13 -> 316.3483413 | P13: =InpR!P$13 -> 326.4714882 | Q13: =InpR!Q$13 -> 336.9185758 | R13: =InpR!R$13 -> 347.0261331
E14: =InpR!E$14 -> RPI: July - index - final determination | G14: =InpR!G$14 -> index | H14: =InpR!H$14 -> 0 | I14: =InpR!I$14 -> 0 | J14: =InpR!J$14 -> 272.9 | K14: =InpR!K$14 -> 281.7 | L14: =InpR!L$14 -> 289.5 | M14: =InpR!M$14 -> 298.8762168 | N14: =InpR!N$14 -> 307.5932985 | O14: =InpR!O$14 -> 317.1798113 | P14: =InpR!P$14 -> 327.3295653 | Q14: =InpR!Q$14 -> 337.8041114 | R14: =InpR!R$14 -> 347.9382347
E15: =InpR!E$15 -> RPI: August - index - final determination | G15: =InpR!G$15 -> index | H15: =InpR!H$15 -> 0 | I15: =InpR!I$15 -> 0 | J15: =InpR!J$15 -> 274.7 | K15: =InpR!K$15 -> 284.2 | L15: =InpR!L$15 -> 291.5 | M15: =InpR!M$15 -> 299.5648018 | N15: =InpR!N$15 -> 308.3519066 | O15: =InpR!O$15 -> 318.0134667 | P15: =InpR!P$15 -> 328.1898977 | Q15: =InpR!Q$15 -> 338.6919744 | R15: =InpR!R$15 -> 348.8527336
E16: =InpR!E$16 -> RPI: September - index - final determination | G16: =InpR!G$16 -> index | H16: =InpR!H$16 -> 0 | I16: =InpR!I$16 -> 0 | J16: =InpR!J$16 -> 275.1 | K16: =InpR!K$16 -> 284.1 | L16: =InpR!L$16 -> 292.1478959 | M16: =InpR!M$16 -> 300.2549733 | N16: =InpR!N$16 -> 309.1123856 | O16: =InpR!O$16 -> 318.8493133 | P16: =InpR!P$16 -> 329.0524913 | Q16: =InpR!Q$16 -> 339.582171 | R16: =InpR!R$16 -> 349.7696362
E17: =InpR!E$17 -> RPI: October - index - final determination | G17: =InpR!G$17 -> index | H17: =InpR!H$17 -> 0 | I17: =InpR!I$17 -> 0 | J17: =InpR!J$17 -> 275.3 | K17: =InpR!K$17 -> 284.5 | L17: =InpR!L$17 -> 292.7972317 | M17: =InpR!M$17 -> 300.9467349 | N17: =InpR!N$17 -> 309.8747401 | O17: =InpR!O$17 -> 319.6873567 | P17: =InpR!P$17 -> 329.9173521 | Q17: =InpR!Q$17 -> 340.4747074 | R17: =InpR!R$17 -> 350.6889486
E18: =InpR!E$18 -> RPI: November - index - final determination | G18: =InpR!G$18 -> index | H18: =InpR!H$18 -> 0 | I18: =InpR!I$18 -> 0 | J18: =InpR!J$18 -> 275.8 | K18: =InpR!K$18 -> 284.6 | L18: =InpR!L$18 -> 293.4480109 | M18: =InpR!M$18 -> 301.6400903 | N18: =InpR!N$18 -> 310.6389748 | O18: =InpR!O$18 -> 320.5276028 | P18: =InpR!P$18 -> 330.7844861 | Q18: =InpR!Q$18 -> 341.3695897 | R18: =InpR!R$18 -> 351.6106773
E19: =InpR!E$19 -> RPI: December - index - final determination | G19: =InpR!G$19 -> index | H19: =InpR!H$19 -> 0 | I19: =InpR!I$19 -> 0 | J19: =InpR!J$19 -> 278.1 | K19: =InpR!K$19 -> 285.6 | L19: =InpR!L$19 -> 294.1002364 | M19: =InpR!M$19 -> 302.335043 | N19: =InpR!N$19 -> 311.4050943 | O19: =InpR!O$19 -> 321.3700574 | P19: =InpR!P$19 -> 331.6538992 | Q19: =InpR!Q$19 -> 342.266824 | R19: =InpR!R$19 -> 352.5348287
E20: =InpR!E$20 -> RPI: January - index - final determination | G20: =InpR!G$20 -> index | H20: =InpR!H$20 -> 0 | I20: =InpR!I$20 -> 0 | J20: =InpR!J$20 -> 276 | K20: =InpR!K$20 -> 283 | L20: =InpR!L$20 -> 294.777818 | M20: =InpR!M$20 -> 303.0806828 | N20: =InpR!N$20 -> 312.2235719 | O20: =InpR!O$20 -> 322.2147261 | P20: =InpR!P$20 -> 332.5255974 | Q20: =InpR!Q$20 -> 343.1664165 | R20: =InpR!R$20 -> 353.461409
E21: =InpR!E$21 -> RPI: February - index - final determination | G21: =InpR!G$21 -> index | H21: =InpR!H$21 -> 0 | I21: =InpR!I$21 -> 0 | J21: =InpR!J$21 -> 278.1 | K21: =InpR!K$21 -> 285 | L21: =InpR!L$21 -> 295.4569607 | M21: =InpR!M$21 -> 303.8281615 | N21: =InpR!N$21 -> 313.0442006 | O21: =InpR!O$21 -> 323.061615 | P21: =InpR!P$21 -> 333.3995867 | Q21: =InpR!Q$21 -> 344.0683735 | R21: =InpR!R$21 -> 354.3904247
E22: =InpR!E$22 -> RPI: March - index - final determination | G22: =InpR!G$22 -> index | H22: =InpR!H$22 -> 0 | I22: =InpR!I$22 -> 0 | J22: =InpR!J$22 -> 278.3 | K22: =InpR!K$22 -> 285.1 | L22: =InpR!L$22 -> 296.1376681 | M22: =InpR!M$22 -> 304.5774838 | N22: =InpR!N$22 -> 313.8669862 | O22: =InpR!O$22 -> 323.9107298 | P22: =InpR!P$22 -> 334.2758732 | Q22: =InpR!Q$22 -> 344.9727011 | R22: =InpR!R$22 -> 355.3218821
E24: RPI: Financial year average - index - final determination | G24: index | J24: =SUM(J11:J22) / 12 -> 274.9083333 | K24: =SUM(K11:K22) / 12 -> 283.3083333 | L24: 292.2388185 | M24: 300.6347615 | N24: 309.5298372 | O24: 319.2811671 | P24: 329.4981645 | Q24: 340.0421058 | R24: 350.2433689
E25: RPI: Fin year average - inflate from base year 2017-18 average - final determination | G25: % | J25: =IF(I$24 = 0, 0, J$24 / $J$24) -> 0 | K25: =IF(J$24 = 0, 0, K$24 / $J$24) -> 1.03055564 | L25: =IF(K$24 = 0, 0, L$24 / $J$24) -> 1.06304096 | M25: 1.093581842 | N25: 1.125938357 | O25: 1.161409563 | P25: 1.198574669 | Q25: 1.236929058 | R25: 1.27403693
E26: RPI: Fin year average - percentage increase - final determination | G26: % | J26: =IF(I$24 = 0, 0, J$24 / I$24 - 1) -> 0 | K26: =IF(J$24 = 0, 0, K$24 / J$24 - 1) -> 0.03055563976 | L26: 0.03152214071 | M26: 0.02872973225 | N26: 0.02958764869 | O26: 0.03150368327 | P26: 0.032 | Q26: 0.032 | R26: 0.03
E28: =E$22 -> RPI: March - index - final determination | G28: index | H28: 0 | I28: 0 | J28: 278.3 | K28: 285.1 | L28: 296.1376681 | M28: 304.5774838 | N28: 313.8669862 | O28: 323.9107298 | P28: 334.2758732 | Q28: 344.9727011 | R28: 355.3218821
E29: =E$24 -> RPI: Financial year average - index - final determination | G29: =G$24 -> index | H29: 0 | I29: 0 | J29: 274.9083333 | K29: 283.3083333 | L29: 292.2388185 | M29: 300.6347615 | N29: 309.5298372 | O29: 319.2811671 | P29: 329.4981645 | Q29: 340.0421058 | R29: 350.2433689
E30: =Time!E$46 -> 1st Forecast Period Flag | G30: =Time!G$46 -> flag | H30: =Time!H$46 -> 1 | I30: =Time!I$46 -> 0 | J30: =Time!J$46 -> 0 | K30: =Time!K$46 -> 0 | L30: =Time!L$46 -> 0 | M30: =Time!M$46 -> 1 | N30: =Time!N$46 -> 0 | O30: =Time!O$46 -> 0 | P30: =Time!P$46 -> 0 | Q30: =Time!Q$46 -> 0 | R30: =Time!R$46 -> 0
E31: RPI Growth from 2019-20 FYE to 2020-21 FYA - final determination | G31: % | J31: =IFERROR((J29 / I28 - 1) * J30, 0) -> 0 | K31: =IFERROR((K29 / J28 - 1) * K30, 0) -> 0 | L31: 0 | M31: =IFERROR((M29 / L28 - 1) * M30, 0) -> 0.01518582015 | N31: 0 | O31: 0 | P31: 0 | Q31: 0 | R31: 0
B33: CPI(H) - final determination
E34: =InpR!E$25 -> CPI(H): April - index - final determination | G34: =InpR!G$25 -> index | H34: =InpR!H$25 -> 0 | I34: =InpR!I$25 -> 0 | J34: =InpR!J$25 -> 103.2 | K34: =InpR!K$25 -> 105.5 | L34: =InpR!L$25 -> 107.6 | M34: =InpR!M$25 -> 109.7033547 | N34: =InpR!N$25 -> 111.8974218 | O34: =InpR!O$25 -> 114.1726572 | P34: =InpR!P$25 -> 116.570283 | Q34: =InpR!Q$25 -> 119.018259 | R34: =InpR!R$25 -> 121.3986242
E35: =InpR!E$26 -> CPI(H): May - index - final determination | G35: =InpR!G$26 -> index | H35: =InpR!H$26 -> 0 | I35: =InpR!I$26 -> 0 | J35: =InpR!J$26 -> 103.5 | K35: =InpR!K$26 -> 105.9 | L35: =InpR!L$26 -> 107.9 | M35: =InpR!M$26 -> 109.8845387 | N35: =InpR!N$26 -> 112.0822295 | O35: =InpR!O$26 -> 114.3705617 | P35: =InpR!P$26 -> 116.7723435 | Q35: =InpR!Q$26 -> 119.2245627 | R35: =InpR!R$26 -> 121.609054
E36: =InpR!E$27 -> CPI(H): June - index - final determination | G36: =InpR!G$27 -> index | H36: =InpR!H$27 -> 0 | I36: =InpR!I$27 -> 0 | J36: =InpR!J$27 -> 103.5 | K36: =InpR!K$27 -> 105.9 | L36: =InpR!L$27 -> 107.9 | M36: =InpR!M$27 -> 110.066022 | N36: =InpR!N$27 -> 112.2673424 | O36: =InpR!O$27 -> 114.5688092 | P36: =InpR!P$27 -> 116.9747542 | Q36: =InpR!Q$27 -> 119.431224 | R36: =InpR!R$27 -> 121.8198485
E37: =InpR!E$28 -> CPI(H): July - index - final determination | G37: =InpR!G$28 -> index | H37: =InpR!H$28 -> 0 | I37: =InpR!I$28 -> 0 | J37: =InpR!J$28 -> 103.5 | K37: =InpR!K$28 -> 105.9 | L37: =InpR!L$28 -> 108 | M37: =InpR!M$28 -> 110.247805 | N37: =InpR!N$28 -> 112.4527611 | O37: =InpR!O$28 -> 114.7674004 | P37: =InpR!P$28 -> 117.1775158 | Q37: =InpR!Q$28 -> 119.6382436 | R37: =InpR!R$28 -> 122.0310085
E38: =InpR!E$29 -> CPI(H): August - index - final determination | G38: =InpR!G$29 -> index | H38: =InpR!H$29 -> 0 | I38: =InpR!I$29 -> 0 | J38: =InpR!J$29 -> 104 | K38: =InpR!K$29 -> 106.5 | L38: =InpR!L$29 -> 108.3 | M38: =InpR!M$29 -> 110.4298882 | N38: =InpR!N$29 -> 112.638486 | O38: =InpR!O$29 -> 114.9663357 | P38: =InpR!P$29 -> 117.3806288 | Q38: =InpR!Q$29 -> 119.845622 | R38: =InpR!R$29 -> 122.2425344
E39: =InpR!E$30 -> CPI(H): September - index - final determination | G39: =InpR!G$30 -> index | H39: =InpR!H$30 -> 0 | I39: =InpR!I$30 -> 0 | J39: =InpR!J$30 -> 104.3 | K39: =InpR!K$30 -> 106.6 | L39: =InpR!L$30 -> 108.4699996 | M39: =InpR!M$30 -> 110.6122721 | N39: =InpR!N$30 -> 112.8245176 | O39: =InpR!O$30 -> 115.165616 | P39: =InpR!P$30 -> 117.5840939 | Q39: =InpR!Q$30 -> 120.0533599 | R39: =InpR!R$30 -> 122.4544271
E40: =InpR!E$31 -> CPI(H): October - index - final determination | G40: =InpR!G$31 -> index | H40: =InpR!H$31 -> 0 | I40: =InpR!I$31 -> 0 | J40: =InpR!J$31 -> 104.4 | K40: =InpR!K$31 -> 106.7 | L40: =InpR!L$31 -> 108.6402661 | M40: =InpR!M$31 -> 110.7949573 | N40: =InpR!N$31 -> 113.0108564 | O40: =InpR!O$31 -> 115.3652416 | P40: =InpR!P$31 -> 117.7879117 | Q40: =InpR!Q$31 -> 120.2614578 | R40: =InpR!R$31 -> 122.666687
E41: =InpR!E$32 -> CPI(H): November - index - final determination | G41: =InpR!G$32 -> index | H41: =InpR!H$32 -> 0 | I41: =InpR!I$32 -> 0 | J41: =InpR!J$32 -> 104.7 | K41: =InpR!K$32 -> 106.9 | L41: =InpR!L$32 -> 108.8107998 | M41: =InpR!M$32 -> 110.9779442 | N41: =InpR!N$32 -> 113.1975031 | O41: =InpR!O$32 -> 115.5652133 | P41: =InpR!P$32 -> 117.9920827 | Q41: =InpR!Q$32 -> 120.4699165 | R41: =InpR!R$32 -> 122.8793148
E42: =InpR!E$33 -> CPI(H): December - index - final determination | G42: =InpR!G$33 -> index | H42: =InpR!H$33 -> 0 | I42: =InpR!I$33 -> 0 | J42: =InpR!J$33 -> 105 | K42: =InpR!K$33 -> 107.1 | L42: =InpR!L$33 -> 108.9816012 | M42: =InpR!M$33 -> 111.1612333 | N42: =InpR!N$33 -> 113.3844579 | O42: =InpR!O$33 -> 115.7655316 | P42: =InpR!P$33 -> 118.1966077 | Q42: =InpR!Q$33 -> 120.6787365 | R42: =InpR!R$33 -> 123.0923112
E43: =InpR!E$34 -> CPI(H): January - index - final determination | G43: =InpR!G$34 -> index | H43: =InpR!H$34 -> 0 | I43: =InpR!I$34 -> 0 | J43: =InpR!J$34 -> 104.5 | K43: =InpR!K$34 -> 106.4 | L43: =InpR!L$34 -> 109.1615932 | M43: =InpR!M$34 -> 111.3448251 | N43: =InpR!N$34 -> 113.5809962 | O43: =InpR!O$34 -> 115.9661971 | P43: =InpR!P$34 -> 118.4014872 | Q43: =InpR!Q$34 -> 120.8879184 | R43: =InpR!R$34 -> 123.3056768
E44: =InpR!E$35 -> CPI(H): February - index - final determination | G44: =InpR!G$35 -> index | H44: =InpR!H$35 -> 0 | I44: =InpR!I$35 -> 0 | J44: =InpR!J$35 -> 104.9 | K44: =InpR!K$35 -> 106.8 | L44: =InpR!L$35 -> 109.3418825 | M44: =InpR!M$35 -> 111.5287201 | N44: =InpR!N$35 -> 113.7778751 | O44: =InpR!O$35 -> 116.1672104 | P44: =InpR!P$35 -> 118.6067218 | Q44: =InpR!Q$35 -> 121.097463 | R44: =InpR!R$35 -> 123.5194123
E45: =InpR!E$36 -> CPI(H): March - index - final determination | G45: =InpR!G$36 -> index | H45: =InpR!H$36 -> 0 | I45: =InpR!I$36 -> 0 | J45: =InpR!J$36 -> 105.1 | K45: =InpR!K$36 -> 107 | L45: =InpR!L$36 -> 109.5224695 | M45: =InpR!M$36 -> 111.7129189 | N45: =InpR!N$36 -> 113.9750952 | O45: =InpR!O$36 -> 116.3685722 | P45: =InpR!P$36 -> 118.8123122 | Q45: =InpR!Q$36 -> 121.3073708 | R45: =InpR!R$36 -> 123.7335182
E47: CPI(H): Financial year average - index - final determination | G47: index | J47: =SUM(J34:J45) / 12 -> 104.2166667 | K47: =SUM(K34:K45) / 12 -> 106.4333333 | L47: 108.5523843 | M47: 110.7053733 | N47: 112.9241285 | O47: 115.2674455 | P47: 117.6880619 | Q47: 120.1595112 | R47: 122.5627014
E48: CPI(H): Fin year average - inflate from base year 2017-18 average - final determination | G48: % | J48: =IF(I$47 = 0, 0, J$47 / $J$47) -> 0 | K48: =IF(J$47 = 0, 0, K$47 / $J$47) -> 1.021269791 | L48: 1.04160292 | M48: 1.062261698 | N48: 1.083551529 | O48: 1.106036579 | P48: 1.129263348 | Q48: 1.152977878 | R48: 1.176037436
E49: CPI(H): Fin year average - percentage increase - final determination | G49: % | J49: =IF(I$47 = 0, 0, J$47 / I$47 - 1) -> 0 | K49: =IF(J$47 = 0, 0, K$47 / J$47 - 1) -> 0.0212697905 | L49: 0.01990965545 | M49: 0.01983364056 | N49: 0.02004198311 | O49: 0.0207512516 | P49: 0.021 | Q49: 0.021 | R49: 0.02
E51: =E$45 -> CPI(H): March - index - final determination | G51: =G$45 -> index | H51: 0 | I51: 0 | J51: 105.1 | K51: 107 | L51: 109.5224695 | M51: 111.7129189 | N51: 113.9750952 | O51: 116.3685722 | P51: 118.8123122 | Q51: 121.3073708 | R51: 123.7335182
E52: =E$47 -> CPI(H): Financial year average - index - final determination | G52: =G$47 -> index | H52: 0 | I52: 0 | J52: 104.2166667 | K52: 106.4333333 | L52: 108.5523843 | M52: 110.7053733 | N52: 112.9241285 | O52: 115.2674455 | P52: 117.6880619 | Q52: 120.1595112 | R52: 122.5627014
E53: =Time!E$46 -> 1st Forecast Period Flag | G53: =Time!G$46 -> flag | H53: =Time!H$46 -> 1 | I53: =Time!I$46 -> 0 | J53: =Time!J$46 -> 0 | K53: =Time!K$46 -> 0 | L53: =Time!L$46 -> 0 | M53: =Time!M$46 -> 1 | N53: =Time!N$46 -> 0 | O53: =Time!O$46 -> 0 | P53: =Time!P$46 -> 0 | Q53: =Time!Q$46 -> 0 | R53: =Time!R$46 -> 0
E54: CPIH Growth from 2019-20 FYE to 2020-21 FYA - final determination | G54: % | J54: =IFERROR((J52 / I51 - 1) * J53, 0) -> 0 | K54: 0 | L54: 0 | M54: =IFERROR((M52 / L51 - 1) * M53, 0) -> 0.01080055837 | N54: 0 | O54: 0 | P54: 0 | Q54: 0 | R54: 0
E56: =E$31 & " - final determination" -> RPI Growth from 2019-20 FYE to 2020-21 FYA - final determination - final determination | G56: =G$31 -> % | J56: =J$31 -> 0 | K56: 0 | L56: 0 | M56: 0.01518582015 | N56: 0 | O56: 0 | P56: 0 | Q56: 0 | R56: 0
E57: =E$54 & " - final determination" -> CPIH Growth from 2019-20 FYE to 2020-21 FYA - final determination - final determination | G57: =G$54 -> % | J57: =J$54 -> 0 | K57: 0 | L57: 0 | M57: 0.01080055837 | N57: 0 | O57: 0 | P57: 0 | Q57: 0 | R57: 0
E58: Wedge between RPI and CPIH 2020-21 - final determination | G58: % | J58: =(1 + J$56) / (1 + J$57) - 1 -> 0 | K58: =(1 + K$56) / (1 + K$57) - 1 -> 0 | L58: 0 | M58: 0.004338404594 | N58: 0 | O58: 0 | P58: 0 | Q58: 0 | R58: 0
B60: Indexation - final determination
E61: =E$58 -> Wedge between RPI and CPIH 2020-21 - final determination | G61: =G$58 -> % | H61: 0 | I61: 0 | J61: 0 | K61: 0 | L61: 0 | M61: 0.004338404594 | N61: 0 | O61: 0 | P61: 0 | Q61: 0 | R61: 0
E62: =E$49 -> CPI(H): Fin year average - percentage increase - final determination | G62: =G$49 -> % | H62: 0 | I62: 0 | J62: 0 | K62: 0.0212697905 | L62: 0.01990965545 | M62: 0.01983364056 | N62: 0.02004198311 | O62: 0.0207512516 | P62: 0.021 | Q62: 0.021 | R62: 0.02
E63: =Time!E$46 -> 1st Forecast Period Flag | G63: =Time!G$46 -> flag | H63: =Time!H$46 -> 1 | I63: =Time!I$46 -> 0 | J63: =Time!J$46 -> 0 | K63: =Time!K$46 -> 0 | L63: =Time!L$46 -> 0 | M63: =Time!M$46 -> 1 | N63: =Time!N$46 -> 0 | O63: =Time!O$46 -> 0 | P63: =Time!P$46 -> 0 | Q63: =Time!Q$46 -> 0 | R63: =Time!R$46 -> 0
E64: CPI(H) + RPI wedge 2020-21 percentage movement - final determination | G64: % | J64: =((1 + J$61) * (1 + J$62) - 1) * J$63 -> 0 | K64: 0 | L64: 0 | M64: =((1 + M$61) * (1 + M$62) - 1) * M$63 -> 0.02425809151 | N64: =((1 + N$61) * (1 + N$62) - 1) * N$63 -> 0 | O64: 0 | P64: 0 | Q64: 0 | R64: 0
E66: =E$64 -> CPI(H) + RPI wedge 2020-21 percentage movement - final determination | G66: =G$64 -> % | I66: 0 | J66: 0 | K66: 0 | L66: 0 | M66: 0.02425809151 | N66: 0 | O66: 0 | P66: 0 | Q66: 0 | R66: 0
E67: =E$26 -> RPI: Fin year average - percentage increase - final determination | G67: % | J67: 0 | K67: 0.03055563976 | L67: 0.03152214071 | M67: 0.02872973225 | N67: 0.02958764869 | O67: 0.03150368327 | P67: 0.032 | Q67: 0.032 | R67: 0.03
E68: RPI: Fin year average - percentage increase - final determination active | G68: % | J68: =IF(J66 = 0, J67, J66) -> 0 | K68: =IF(K66 = 0, K67, K66) -> 0.03055563976 | L68: =IF(L66 = 0, L67, L66) -> 0.03152214071 | M68: 0.02425809151 | N68: 0.02958764869 | O68: 0.03150368327 | P68: 0.032 | Q68: 0.032 | R68: 0.03
E70: =E$68 -> RPI: Fin year average - percentage increase - final determination active | G70: =G$68 -> % | J70: 0 | K70: 0.03055563976 | L70: 0.03152214071 | M70: 0.02425809151 | N70: 0.02958764869 | O70: 0.03150368327 | P70: 0.032 | Q70: 0.032 | R70: 0.03
E71: =E$49 -> CPI(H): Fin year average - percentage increase - final determination | G71: =G$49 -> % | I71: 0 | J71: 0 | K71: 0.0212697905 | L71: 0.01990965545 | M71: 0.01983364056 | N71: 0.02004198311 | O71: 0.0207512516 | P71: 0.021 | Q71: 0.021 | R71: 0.02
E72: Forecast RPI/CPIH wedge - final determination | G72: % | I72: =I$169 -> 0 | K72: =K70-K71 -> 0.009285849258 | L72: =L70-L71 -> 0.01161248526 | M72: 0.004424450951 | N72: 0.009545665577 | O72: 0.01075243168 | P72: 0.011 | Q72: 0.011 | R72: 0.01
A74: OUTTURN INFLATION
B75: RPI - outturn
E76: =InpR!E$40 -> RPI: April - index - actual (including forecast) | G76: =InpR!G$40 -> index | H76: =InpR!H$40 -> 0 | I76: =InpR!I$40 -> 0 | J76: =InpR!J$40 -> 0 | K76: =InpR!K$40 -> 0 | L76: =InpR!L$40 -> 0 | M76: =InpR!M$40 -> 0 | N76: =InpR!N$40 -> 0 | O76: =InpR!O$40 -> 0 | P76: =InpR!P$40 -> 0 | Q76: =InpR!Q$40 -> 0 | R76: =InpR!R$40 -> 0
E77: =InpR!E$41 -> RPI: May - index - actual (including forecast) | G77: =InpR!G$41 -> index | H77: =InpR!H$41 -> 0 | I77: =InpR!I$41 -> 0 | J77: =InpR!J$41 -> 0 | K77: =InpR!K$41 -> 0 | L77: =InpR!L$41 -> 0 | M77: =InpR!M$41 -> 0 | N77: =InpR!N$41 -> 0 | O77: =InpR!O$41 -> 0 | P77: =InpR!P$41 -> 0 | Q77: =InpR!Q$41 -> 0 | R77: =InpR!R$41 -> 0
E78: =InpR!E$42 -> RPI: June - index - actual (including forecast) | G78: =InpR!G$42 -> index | H78: =InpR!H$42 -> 0 | I78: =InpR!I$42 -> 0 | J78: =InpR!J$42 -> 0 | K78: =InpR!K$42 -> 0 | L78: =InpR!L$42 -> 0 | M78: =InpR!M$42 -> 0 | N78: =InpR!N$42 -> 0 | O78: =InpR!O$42 -> 0 | P78: =InpR!P$42 -> 0 | Q78: =InpR!Q$42 -> 0 | R78: =InpR!R$42 -> 0
E79: =InpR!E$43 -> RPI: July - index - actual (including forecast) | G79: =InpR!G$43 -> index | H79: =InpR!H$43 -> 0 | I79: =InpR!I$43 -> 0 | J79: =InpR!J$43 -> 0 | K79: =InpR!K$43 -> 0 | L79: =InpR!L$43 -> 0 | M79: =InpR!M$43 -> 0 | N79: =InpR!N$43 -> 0 | O79: =InpR!O$43 -> 0 | P79: =InpR!P$43 -> 0 | Q79: =InpR!Q$43 -> 0 | R79: =InpR!R$43 -> 0
E80: =InpR!E$44 -> RPI: August - index - actual (including forecast) | G80: =InpR!G$44 -> index | H80: =InpR!H$44 -> 0 | I80: =InpR!I$44 -> 0 | J80: =InpR!J$44 -> 0 | K80: =InpR!K$44 -> 0 | L80: =InpR!L$44 -> 0 | M80: =InpR!M$44 -> 0 | N80: =InpR!N$44 -> 0 | O80: =InpR!O$44 -> 0 | P80: =InpR!P$44 -> 0 | Q80: =InpR!Q$44 -> 0 | R80: =InpR!R$44 -> 0
E81: =InpR!E$45 -> RPI: September - index - actual (including forecast) | G81: =InpR!G$45 -> index | H81: =InpR!H$45 -> 0 | I81: =InpR!I$45 -> 0 | J81: =InpR!J$45 -> 0 | K81: =InpR!K$45 -> 0 | L81: =InpR!L$45 -> 0 | M81: =InpR!M$45 -> 0 | N81: =InpR!N$45 -> 0 | O81: =InpR!O$45 -> 0 | P81: =InpR!P$45 -> 0 | Q81: =InpR!Q$45 -> 0 | R81: =InpR!R$45 -> 0
E82: =InpR!E$46 -> RPI: October - index - actual (including forecast) | G82: =InpR!G$46 -> index | H82: =InpR!H$46 -> 0 | I82: =InpR!I$46 -> 0 | J82: =InpR!J$46 -> 0 | K82: =InpR!K$46 -> 0 | L82: =InpR!L$46 -> 0 | M82: =InpR!M$46 -> 0 | N82: =InpR!N$46 -> 0 | O82: =InpR!O$46 -> 0 | P82: =InpR!P$46 -> 0 | Q82: =InpR!Q$46 -> 0 | R82: =InpR!R$46 -> 0
E83: =InpR!E$47 -> RPI: November - index - actual (including forecast) | G83: =InpR!G$47 -> index | H83: =InpR!H$47 -> 0 | I83: =InpR!I$47 -> 0 | J83: =InpR!J$47 -> 0 | K83: =InpR!K$47 -> 0 | L83: =InpR!L$47 -> 0 | M83: =InpR!M$47 -> 0 | N83: =InpR!N$47 -> 0 | O83: =InpR!O$47 -> 0 | P83: =InpR!P$47 -> 0 | Q83: =InpR!Q$47 -> 0 | R83: =InpR!R$47 -> 0
E84: =InpR!E$48 -> RPI: December - index - actual (including forecast) | G84: =InpR!G$48 -> index | H84: =InpR!H$48 -> 0 | I84: =InpR!I$48 -> 0 | J84: =InpR!J$48 -> 0 | K84: =InpR!K$48 -> 0 | L84: =InpR!L$48 -> 0 | M84: =InpR!M$48 -> 0 | N84: =InpR!N$48 -> 0 | O84: =InpR!O$48 -> 0 | P84: =InpR!P$48 -> 0 | Q84: =InpR!Q$48 -> 0 | R84: =InpR!R$48 -> 0
E85: =InpR!E$49 -> RPI: January - index - actual (including forecast) | G85: =InpR!G$49 -> index | H85: =InpR!H$49 -> 0 | I85: =InpR!I$49 -> 0 | J85: =InpR!J$49 -> 0 | K85: =InpR!K$49 -> 0 | L85: =InpR!L$49 -> 0 | M85: =InpR!M$49 -> 0 | N85: =InpR!N$49 -> 0 | O85: =InpR!O$49 -> 0 | P85: =InpR!P$49 -> 0 | Q85: =InpR!Q$49 -> 0 | R85: =InpR!R$49 -> 0
E86: =InpR!E$50 -> RPI: February - index - actual (including forecast) | G86: =InpR!G$50 -> index | H86: =InpR!H$50 -> 0 | I86: =InpR!I$50 -> 0 | J86: =InpR!J$50 -> 0 | K86: =InpR!K$50 -> 0 | L86: =InpR!L$50 -> 0 | M86: =InpR!M$50 -> 0 | N86: =InpR!N$50 -> 0 | O86: =InpR!O$50 -> 0 | P86: =InpR!P$50 -> 0 | Q86: =InpR!Q$50 -> 0 | R86: =InpR!R$50 -> 0
E87: =InpR!E$51 -> RPI: March - index - actual (including forecast) | G87: =InpR!G$51 -> index | H87: =InpR!H$51 -> 0 | I87: =InpR!I$51 -> 0 | J87: =InpR!J$51 -> 0 | K87: =InpR!K$51 -> 0 | L87: =InpR!L$51 -> 0 | M87: =InpR!M$51 -> 0 | N87: =InpR!N$51 -> 0 | O87: =InpR!O$51 -> 0 | P87: =InpR!P$51 -> 0 | Q87: =InpR!Q$51 -> 0 | R87: =InpR!R$51 -> 0
E89: RPI: Financial year average - index - actual (including forecast) | G89: index | J89: =SUM(J76:J87) / 12 -> 0 | K89: =SUM(K76:K87) / 12 -> 0 | L89: 0 | M89: 0 | N89: 0 | O89: 0 | P89: 0 | Q89: 0 | R89: 0
E90: RPI: Fin year average - inflate from base year 2017-18 average - actual (including forecast) | G90: % | J90: =IF(I$89 = 0, 0, J$89 / $J$89) -> 0 | K90: =IF(J$89 = 0, 0, K$89 / $J$89) -> 0 | L90: 0 | M90: 0 | N90: 0 | O90: 0 | P90: 0 | Q90: 0 | R90: 0
E91: RPI: Fin year average - percentage increase - actual (including forecast) | G91: % | J91: =IF(I$89 = 0, 0, J$89 / I$89 - 1) -> 0 | K91: =IF(J$89 = 0, 0, K$89 / J$89 - 1) -> 0 | L91: 0 | M91: 0 | N91: 0 | O91: 0 | P91: 0 | Q91: 0 | R91: 0
E93: =E$87 -> RPI: March - index - actual (including forecast) | G93: =G$87 -> index | H93: 0 | I93: 0 | J93: 0 | K93: 0 | L93: 0 | M93: 0 | N93: 0 | O93: 0 | P93: 0 | Q93: 0 | R93: 0
E94: =E$89 -> RPI: Financial year average - index - actual (including forecast) | G94: =G$89 -> index | H94: =H$89 -> 0 | I94: 0 | J94: 0 | K94: 0 | L94: 0 | M94: 0 | N94: 0 | O94: 0 | P94: 0 | Q94: 0 | R94: 0
E95: =Time!E$46 -> 1st Forecast Period Flag | G95: =Time!G$46 -> flag | H95: =Time!H$46 -> 1 | I95: =Time!I$46 -> 0 | J95: =Time!J$46 -> 0 | K95: =Time!K$46 -> 0 | L95: =Time!L$46 -> 0 | M95: =Time!M$46 -> 1 | N95: =Time!N$46 -> 0 | O95: =Time!O$46 -> 0 | P95: =Time!P$46 -> 0 | Q95: =Time!Q$46 -> 0 | R95: =Time!R$46 -> 0
E96: RPI Growth from 2019-20 FYE to 2020-21 FYA - actual (including forecast) | G96: % | J96: =IFERROR((J94 / I93 - 1) * J95, 0) -> 0 | K96: =IFERROR((K94 / J93 - 1) * K95, 0) -> 0 | L96: =IFERROR((L94 / K93 - 1) * L95, 0) -> 0 | M96: =IFERROR((M94 / L93 - 1) * M95, 0) -> 0 | N96: =IFERROR((N94 / M93 - 1) * N95, 0) -> 0 | O96: =IFERROR((O94 / N93 - 1) * O95, 0) -> 0 | P96: =IFERROR((P94 / O93 - 1) * P95, 0) -> 0 | Q96: =IFERROR((Q94 / P93 - 1) * Q95, 0) -> 0 | R96: =IFERROR((R94 / Q93 - 1) * R95, 0) -> 0
B98: CPI(H) - outturn
E99: =InpR!E$54 -> CPI(H): April - index - actual (including forecast) | G99: =InpR!G$54 -> index | H99: =InpR!H$54 -> 0 | I99: =InpR!I$54 -> 0 | J99: =InpR!J$54 -> 0 | K99: =InpR!K$54 -> 0 | L99: =InpR!L$54 -> 0 | M99: =InpR!M$54 -> 0 | N99: =InpR!N$54 -> 0 | O99: =InpR!O$54 -> 0 | P99: =InpR!P$54 -> 0 | Q99: =InpR!Q$54 -> 0 | R99: =InpR!R$54 -> 0
E100: =InpR!E$55 -> CPI(H): May - index - actual (including forecast) | G100: =InpR!G$55 -> index | H100: =InpR!H$55 -> 0 | I100: =InpR!I$55 -> 0 | J100: =InpR!J$55 -> 0 | K100: =InpR!K$55 -> 0 | L100: =InpR!L$55 -> 0 | M100: =InpR!M$55 -> 0 | N100: =InpR!N$55 -> 0 | O100: =InpR!O$55 -> 0 | P100: =InpR!P$55 -> 0 | Q100: =InpR!Q$55 -> 0 | R100: =InpR!R$55 -> 0
E101: =InpR!E$56 -> CPI(H): June - index - actual (including forecast) | G101: =InpR!G$56 -> index | H101: =InpR!H$56 -> 0 | I101: =InpR!I$56 -> 0 | J101: =InpR!J$56 -> 0 | K101: =InpR!K$56 -> 0 | L101: =InpR!L$56 -> 0 | M101: =InpR!M$56 -> 0 | N101: =InpR!N$56 -> 0 | O101: =InpR!O$56 -> 0 | P101: =InpR!P$56 -> 0 | Q101: =InpR!Q$56 -> 0 | R101: =InpR!R$56 -> 0
E102: =InpR!E$57 -> CPI(H): July - index - actual (including forecast) | G102: =InpR!G$57 -> index | H102: =InpR!H$57 -> 0 | I102: =InpR!I$57 -> 0 | J102: =InpR!J$57 -> 0 | K102: =InpR!K$57 -> 0 | L102: =InpR!L$57 -> 0 | M102: =InpR!M$57 -> 0 | N102: =InpR!N$57 -> 0 | O102: =InpR!O$57 -> 0 | P102: =InpR!P$57 -> 0 | Q102: =InpR!Q$57 -> 0 | R102: =InpR!R$57 -> 0
E103: =InpR!E$58 -> CPI(H): August - index - actual (including forecast) | G103: =InpR!G$58 -> index | H103: =InpR!H$58 -> 0 | I103: =InpR!I$58 -> 0 | J103: =InpR!J$58 -> 0 | K103: =InpR!K$58 -> 0 | L103: =InpR!L$58 -> 0 | M103: =InpR!M$58 -> 0 | N103: =InpR!N$58 -> 0 | O103: =InpR!O$58 -> 0 | P103: =InpR!P$58 -> 0 | Q103: =InpR!Q$58 -> 0 | R103: =InpR!R$58 -> 0
E104: =InpR!E$59 -> CPI(H): September - index - actual (including forecast) | G104: =InpR!G$59 -> index | H104: =InpR!H$59 -> 0 | I104: =InpR!I$59 -> 0 | J104: =InpR!J$59 -> 0 | K104: =InpR!K$59 -> 0 | L104: =InpR!L$59 -> 0 | M104: =InpR!M$59 -> 0 | N104: =InpR!N$59 -> 0 | O104: =InpR!O$59 -> 0 | P104: =InpR!P$59 -> 0 | Q104: =InpR!Q$59 -> 0 | R104: =InpR!R$59 -> 0
E105: =InpR!E$60 -> CPI(H): October - index - actual (including forecast) | G105: =InpR!G$60 -> index | H105: =InpR!H$60 -> 0 | I105: =InpR!I$60 -> 0 | J105: =InpR!J$60 -> 0 | K105: =InpR!K$60 -> 0 | L105: =InpR!L$60 -> 0 | M105: =InpR!M$60 -> 0 | N105: =InpR!N$60 -> 0 | O105: =InpR!O$60 -> 0 | P105: =InpR!P$60 -> 0 | Q105: =InpR!Q$60 -> 0 | R105: =InpR!R$60 -> 0
E106: =InpR!E$61 -> CPI(H): November - index - actual (including forecast) | G106: =InpR!G$61 -> index | H106: =InpR!H$61 -> 0 | I106: =InpR!I$61 -> 0 | J106: =InpR!J$61 -> 0 | K106: =InpR!K$61 -> 0 | L106: =InpR!L$61 -> 0 | M106: =InpR!M$61 -> 0 | N106: =InpR!N$61 -> 0 | O106: =InpR!O$61 -> 0 | P106: =InpR!P$61 -> 0 | Q106: =InpR!Q$61 -> 0 | R106: =InpR!R$61 -> 0
E107: =InpR!E$62 -> CPI(H): December - index - actual (including forecast) | G107: =InpR!G$62 -> index | H107: =InpR!H$62 -> 0 | I107: =InpR!I$62 -> 0 | J107: =InpR!J$62 -> 0 | K107: =InpR!K$62 -> 0 | L107: =InpR!L$62 -> 0 | M107: =InpR!M$62 -> 0 | N107: =InpR!N$62 -> 0 | O107: =InpR!O$62 -> 0 | P107: =InpR!P$62 -> 0 | Q107: =InpR!Q$62 -> 0 | R107: =InpR!R$62 -> 0
E108: =InpR!E$63 -> CPI(H): January - index - actual (including forecast) | G108: =InpR!G$63 -> index | H108: =InpR!H$63 -> 0 | I108: =InpR!I$63 -> 0 | J108: =InpR!J$63 -> 0 | K108: =InpR!K$63 -> 0 | L108: =InpR!L$63 -> 0 | M108: =InpR!M$63 -> 0 | N108: =InpR!N$63 -> 0 | O108: =InpR!O$63 -> 0 | P108: =InpR!P$63 -> 0 | Q108: =InpR!Q$63 -> 0 | R108: =InpR!R$63 -> 0
E109: =InpR!E$64 -> CPI(H): February - index - actual (including forecast) | G109: =InpR!G$64 -> index | H109: =InpR!H$64 -> 0 | I109: =InpR!I$64 -> 0 | J109: =InpR!J$64 -> 0 | K109: =InpR!K$64 -> 0 | L109: =InpR!L$64 -> 0 | M109: =InpR!M$64 -> 0 | N109: =InpR!N$64 -> 0 | O109: =InpR!O$64 -> 0 | P109: =InpR!P$64 -> 0 | Q109: =InpR!Q$64 -> 0 | R109: =InpR!R$64 -> 0
E110: =InpR!E$65 -> CPI(H): March - index - actual (including forecast) | G110: =InpR!G$65 -> index | H110: =InpR!H$65 -> 0 | I110: =InpR!I$65 -> 0 | J110: =InpR!J$65 -> 0 | K110: =InpR!K$65 -> 0 | L110: =InpR!L$65 -> 0 | M110: =InpR!M$65 -> 0 | N110: =InpR!N$65 -> 0 | O110: =InpR!O$65 -> 0 | P110: =InpR!P$65 -> 0 | Q110: =InpR!Q$65 -> 0 | R110: =InpR!R$65 -> 0
E112: CPI(H): Financial year average - index - actual (including forecast) | G112: index | J112: =SUM(J99:J110) / 12 -> 0 | K112: =SUM(K99:K110) / 12 -> 0 | L112: 0 | M112: 0 | N112: 0 | O112: 0 | P112: 0 | Q112: 0 | R112: 0
E113: CPI(H): Fin year average - inflate from base year 2017-18 average - actual (including forecast) | G113: % | J113: =IF(I$112 = 0, 0, J$112 / $J$112) -> 0 | K113: =IF(J$112 = 0, 0, K$112 / $J$112) -> 0 | L113: 0 | M113: 0 | N113: 0 | O113: 0 | P113: 0 | Q113: 0 | R113: 0
E114: CPI(H): Fin year average - percentage increase - actual (including forecast) | G114: % | J114: =IF(I$112 = 0, 0, J$112 / I$112 - 1) -> 0 | K114: =IF(J$112 = 0, 0, K$112 / J$112 - 1) -> 0 | L114: 0 | M114: 0 | N114: 0 | O114: 0 | P114: 0 | Q114: 0 | R114: 0
E116: =E$110 -> CPI(H): March - index - actual (including forecast) | G116: =G$110 -> index | H116: 0 | J116: =J$110 -> 0 | K116: 0 | L116: 0 | M116: 0 | N116: 0 | O116: 0 | P116: 0 | Q116: 0 | R116: 0
E117: =E$112 -> CPI(H): Financial year average - index - actual (including forecast) | G117: =G$112 -> index | H117: 0 | J117: =J$112 -> 0 | K117: 0 | L117: 0 | M117: 0 | N117: 0 | O117: 0 | P117: 0 | Q117: 0 | R117: 0
E118: =Time!E$46 -> 1st Forecast Period Flag | G118: =Time!G$46 -> flag | H118: =Time!H$46 -> 1 | I118: =Time!I$46 -> 0 | J118: =Time!J$46 -> 0 | K118: =Time!K$46 -> 0 | L118: =Time!L$46 -> 0 | M118: =Time!M$46 -> 1 | N118: =Time!N$46 -> 0 | O118: =Time!O$46 -> 0 | P118: =Time!P$46 -> 0 | Q118: =Time!Q$46 -> 0 | R118: =Time!R$46 -> 0
E119: CPIH Growth from 2019-20 FYE to 2020-21 FYA - actual (including forecast) | G119: % | J119: =IFERROR((J117 / I116 - 1) * J118, 0) -> 0 | K119: =IFERROR((K117 / J116 - 1) * K118, 0) -> 0 | L119: =IFERROR((L117 / K116 - 1) * L118, 0) -> 0 | M119: =IFERROR((M117 / L116 - 1) * M118, 0) -> 0 | N119: =IFERROR((N117 / M116 - 1) * N118, 0) -> 0 | O119: =IFERROR((O117 / N116 - 1) * O118, 0) -> 0 | P119: =IFERROR((P117 / O116 - 1) * P118, 0) -> 0 | Q119: =IFERROR((Q117 / P116 - 1) * Q118, 0) -> 0 | R119: =IFERROR((R117 / Q116 - 1) * R118, 0) -> 0
E121: =E$96 & " - actual (including forecast)" -> RPI Growth from 2019-20 FYE to 2020-21 FYA - actual (including forecast) - actual (including forecast) | G121: =G$96 -> % | J121: =J$96 -> 0 | K121: 0 | L121: 0 | M121: 0 | N121: 0 | O121: 0 | P121: 0 | Q121: 0 | R121: 0
E122: =E$119 & " - actual (including forecast)" -> CPIH Growth from 2019-20 FYE to 2020-21 FYA - actual (including forecast) - actual (including forecast) | G122: =G$119 -> % | J122: =J$119 -> 0 | K122: 0 | L122: 0 | M122: 0 | N122: 0 | O122: 0 | P122: 0 | Q122: 0 | R122: 0
E123: Wedge between RPI and CPIH 2020-21 - actual (including forecast) | G123: % | J123: =(1 + J$121) / (1 + J$122) - 1 -> 0 | K123: =(1 + K$121) / (1 + K$122) - 1 -> 0 | L123: 0 | M123: 0 | N123: 0 | O123: 0 | P123: 0 | Q123: 0 | R123: 0
B125: Indexation - final determination
E126: =E$123 -> Wedge between RPI and CPIH 2020-21 - actual (including forecast) | G126: =G$123 -> % | H126: 0 | I126: 0 | J126: 0 | K126: 0 | L126: 0 | M126: 0 | N126: 0 | O126: 0 | P126: 0 | Q126: 0 | R126: 0
E127: =E$114 -> CPI(H): Fin year average - percentage increase - actual (including forecast) | G127: =G$114 -> % | H127: 0 | I127: 0 | J127: 0 | K127: 0 | L127: 0 | M127: 0 | N127: 0 | O127: 0 | P127: 0 | Q127: 0 | R127: 0
E128: =Time!E$46 -> 1st Forecast Period Flag | G128: =Time!G$46 -> flag | H128: =Time!H$46 -> 1 | I128: =Time!I$46 -> 0 | J128: =Time!J$46 -> 0 | K128: =Time!K$46 -> 0 | L128: =Time!L$46 -> 0 | M128: =Time!M$46 -> 1 | N128: =Time!N$46 -> 0 | O128: =Time!O$46 -> 0 | P128: =Time!P$46 -> 0 | Q128: =Time!Q$46 -> 0 | R128: =Time!R$46 -> 0
E129: CPI(H) + RPI wedge 2020-21 percentage movement - actual (including forecast) | G129: % | J129: =((1 + J$126) * (1 + J$127) - 1) * J$128 -> 0 | K129: =((1 + K$126) * (1 + K$127) - 1) * K$128 -> 0 | L129: 0 | M129: =((1 + M$126) * (1 + M$127) - 1) * M$128 -> 0 | N129: 0 | O129: 0 | P129: 0 | Q129: 0 | R129: 0
E131: =E129 -> CPI(H) + RPI wedge 2020-21 percentage movement - actual (including forecast) | G131: =G129 -> % | H131: 0 | I131: 0 | J131: 0 | K131: 0 | L131: 0 | M131: 0 | N131: 0 | O131: 0 | P131: 0 | Q131: 0 | R131: 0
E132: =E$91 -> RPI: Fin year average - percentage increase - actual (including forecast) | G132: =G$91 -> % | J132: =J$91 -> 0 | K132: 0 | L132: 0 | M132: 0 | N132: 0 | O132: 0 | P132: 0 | Q132: 0 | R132: 0
E133: RPI: Fin year average - percentage increase - actual (including forecast) active | G133: % | J133: =IF(J131 = 0, J132, J131) -> 0 | K133: =IF(K131 = 0, K132, K131) -> 0 | L133: =IF(L131 = 0, L132, L131) -> 0 | M133: 0 | N133: 0 | O133: 0 | P133: 0 | Q133: 0 | R133: 0
E135: =E133 -> RPI: Fin year average - percentage increase - actual (including forecast) active | G135: =G133 -> % | H135: 0 | I135: 0 | J135: 0 | K135: 0 | L135: 0 | M135: 0 | N135: 0 | O135: 0 | P135: 0 | Q135: 0 | R135: 0
E136: =E114 -> CPI(H): Fin year average - percentage increase - actual (including forecast) | G136: =G114 -> % | H136: 0 | I136: 0 | J136: 0 | K136: 0 | L136: 0 | M136: 0 | N136: 0 | O136: 0 | P136: 0 | Q136: 0 | R136: 0
E137: Actual RPI/CPIH wedge - actual (including forecast) | G137: % | I137: =I$169 -> 0 | K137: =K135-K136 -> 0 | L137: =L135-L136 -> 0 | M137: 0 | N137: 0 | O137: 0 | P137: 0 | Q137: 0 | R137: 0
A140: END

Sheet Calcs
A1: =RIGHT(CELL("filename", $A$1), LEN(CELL("filename", $A$1)) - SEARCH("]", CELL("filename", $A$1))) -> Calcs
E2: =Time!E$23 -> Model Period END | F2: =Checks!$F$9 -> 0 | G2: Error chks | J2: =Time!J$23 -> 2018-03-31 | K2: =Time!K$23 -> 2019-03-31 | L2: =Time!L$23 -> 2020-03-31 | M2: =Time!M$23 -> 2021-03-31 | N2: =Time!N$23 -> 2022-03-31 | O2: =Time!O$23 -> 2023-03-31 | P2: =Time!P$23 -> 2024-03-31 | Q2: =Time!Q$23 -> 2025-03-31 | R2: =Time!R$23 -> 2026-03-31
E3: =Time!E$59 -> Pre Forecast vs Forecast | F3: =InpC!$J$10 -> 0 | G3: Input Error | J3: =Time!J$59 -> Pre Fcst | K3: =Time!K$59 -> Pre Fcst | L3: =Time!L$59 -> Pre Fcst | M3: =Time!M$59 -> Forecast | N3: =Time!N$59 -> Forecast | O3: =Time!O$59 -> Forecast | P3: =Time!P$59 -> Forecast | Q3: =Time!Q$59 -> Forecast | R3: =Time!R$59 -> Post-Fcst
E4: =Time!E$86 -> Financial Year Ending | F4: =Checks!$F$18 -> 15 | G4: Track checks | J4: =Time!J$86 -> 2018 | K4: =Time!K$86 -> 2019 | L4: =Time!L$86 -> 2020 | M4: =Time!M$86 -> 2021 | N4: =Time!N$86 -> 2022 | O4: =Time!O$86 -> 2023 | P4: =Time!P$86 -> 2024 | Q4: =Time!Q$86 -> 2025 | R4: =Time!R$86 -> 2026
E6: =Time!E$11 -> Model column counter | F6: Constant | G6: Unit | H6: Total | J6: =Time!J$11 -> 1 | K6: =Time!K$11 -> 2 | L6: =Time!L$11 -> 3 | M6: =Time!M$11 -> 4 | N6: =Time!N$11 -> 5 | O6: =Time!O$11 -> 6 | P6: =Time!P$11 -> 7 | Q6: =Time!Q$11 -> 8 | R6: =Time!R$11 -> 9
A8: Forecast position at PR19 final determination
C10: This section replicates the RCV calculations in the PR19 final determination financial model.
B12: Forecast inflation
E13: =Index!E$49 -> CPI(H): Fin year average - percentage increase - final determination | F13: =Index!F$49 -> 0 | G13: =Index!G$49 -> % | H13: =Index!H$49 -> 0 | I13: =Index!I$49 -> 0 | J13: =Index!J$49 -> 0 | K13: =Index!K$49 -> 0.0212697905 | L13: =Index!L$49 -> 0.01990965545 | M13: =Index!M$49 -> 0.01983364056 | N13: =Index!N$49 -> 0.02004198311 | O13: =Index!O$49 -> 0.0207512516 | P13: =Index!P$49 -> 0.021 | Q13: =Index!Q$49 -> 0.021 | R13: =Index!R$49 -> 0.02
E14: =Index!E$72 -> Forecast RPI/CPIH wedge - final determination | F14: =Index!F$72 -> 0 | G14: =Index!G$72 -> % | H14: =Index!H$72 -> 0 | I14: =Index!I$72 -> 0 | J14: =Index!J$72 -> 0 | K14: =Index!K$72 -> 0.009285849258 | L14: =Index!L$72 -> 0.01161248526 | M14: =Index!M$72 -> 0.004424450951 | N14: =Index!N$72 -> 0.009545665577 | O14: =Index!O$72 -> 0.01075243168 | P14: =Index!P$72 -> 0.011 | Q14: =Index!Q$72 -> 0.011 | R14: =Index!R$72 -> 0.01
E15: Forecast Indexation percentage | G15: % | J15: =SUM(J13:J14) -> 0 | K15: 0.03055563976 | L15: 0.03152214071 | M15: =SUM(M13:M14) -> 0.02425809151 | N15: =SUM(N13:N14) -> 0.02958764869 | O15: 0.03150368327 | P15: 0.032 | Q15: 0.032 | R15: 0.03
E17: =Time!E$40 -> Acquisition / initial balance date flag | F17: =Time!F$40 -> 0 | G17: =Time!G$40 -> flag | H17: =Time!H$40 -> 1 | I17: =Time!I$40 -> 0 | J17: =Time!J$40 -> 0 | K17: =Time!K$40 -> 0 | L17: =Time!L$40 -> 1 | M17: =Time!M$40 -> 0 | N17: =Time!N$40 -> 0 | O17: =Time!O$40 -> 0 | P17: =Time!P$40 -> 0 | Q17: =Time!Q$40 -> 0 | R17: =Time!R$40 -> 0
E18: =Index!E$49 -> CPI(H): Fin year average - percentage increase - final determination | F18: =Index!F$49 -> 0 | G18: =Index!G$49 -> % | H18: =Index!H$49 -> 0 | I18: =Index!I$49 -> 0 | J18: =Index!J$49 -> 0 | K18: =Index!K$49 -> 0.0212697905 | L18: =Index!L$49 -> 0.01990965545 | M18: =Index!M$49 -> 0.01983364056 | N18: =Index!N$49 -> 0.02004198311 | O18: =Index!O$49 -> 0.0207512516 | P18: =Index!P$49 -> 0.021 | Q18: =Index!Q$49 -> 0.021 | R18: =Index!R$49 -> 0.02
E19: Cumulative CPIH inflation | J19: =IF(J17=1,1,I19*(1+J18)) -> 0 | K19: =IF(K17=1,1,J19*(1+K18)) -> 0 | L19: 1 | M19: 1.019833641 | N19: 1.040273129 | O19: 1.061860099 | P19: 1.084159161 | Q19: 1.106926503 | R19: 1.129065033
B21: Forecast RCV balance
E22: =E$34 -> Forecast Nominal RCV balance BEG | F22: 0 | G22: £m | H22: 0 | I22: 0 | J22: 0 | K22: 0 | L22: 0 | M22: 0 | N22: 0 | O22: 0 | P22: 0 | Q22: 0 | R22: 0
E23: =E$15 -> Forecast Indexation percentage | F23: 0 | G23: % | H23: 0 | I23: 0 | J23: 0 | K23: 0.03055563976 | L23: 0.03152214071 | M23: 0.02425809151 | N23: 0.02958764869 | O23: 0.03150368327 | P23: 0.032 | Q23: 0.032 | R23: 0.03
E24: Forecast RCV indexation | G24: £m | J24: =J22*J23 -> 0 | K24: =K22*K23 -> 0 | L24: 0 | M24: =M22*M23 -> 0 | N24: 0 | O24: 0 | P24: 0 | Q24: 0 | R24: 0
E26: =InpR!E$78 -> RCV run-off rate | F26: =InpR!F$78 -> 0 | G26: =InpR!G$78 -> % | H26: =InpR!H$78 -> 0 | I26: =InpR!I$78 -> 0 | J26: =InpR!J$78 -> 0 | K26: =InpR!K$78 -> 0 | L26: =InpR!L$78 -> 0 | M26: =InpR!M$78 -> 0 | N26: =InpR!N$78 -> 0 | O26: =InpR!O$78 -> 0 | P26: =InpR!P$78 -> 0 | Q26: =InpR!Q$78 -> 0 | R26: =InpR!R$96 -> 0
E27: =E$34 -> Forecast Nominal RCV balance BEG | F27: 0 | G27: £m | H27: 0 | I27: 0 | J27: 0 | K27: 0 | L27: 0 | M27: 0 | N27: 0 | O27: 0 | P27: 0 | Q27: 0 | R27: 0
E28: =E$24 -> Forecast RCV indexation | F28: 0 | G28: £m | H28: 0 | I28: 0 | J28: 0 | K28: 0 | L28: 0 | M28: 0 | N28: 0 | O28: 0 | P28: 0 | Q28: 0 | R28: 0
E29: Forecast RCV run-off | G29: £m | J29: =(J27+J28) * J26 -> 0 | K29: 0 | L29: =(L27+L28) * L26 -> 0 | M29: 0 | N29: 0 | O29: 0 | P29: 0 | Q29: 0 | R29: 0
E31: =InpC!E$32 -> Forecast Nominal RCV - initial balance | F31: =InpC!F$32 -> 0 | G31: =InpC!G$32 -> £m
E32: =Time!E$40 -> Acquisition / initial balance date flag | F32: =Time!F$40 -> 0 | G32: =Time!G$40 -> flag | H32: =Time!H$40 -> 1 | I32: =Time!I$40 -> 0 | J32: =Time!J$40 -> 0 | K32: =Time!K$40 -> 0 | L32: =Time!L$40 -> 1 | M32: =Time!M$40 -> 0 | N32: =Time!N$40 -> 0 | O32: =Time!O$40 -> 0 | P32: =Time!P$40 -> 0 | Q32: =Time!Q$40 -> 0 | R32: =Time!R$40 -> 0
E34: Forecast Nominal RCV balance BEG | G34: £m | J34: =I37 -> 0 | K34: 0 | L34: 0 | M34: 0 | N34: 0 | O34: 0 | P34: 0 | Q34: 0 | R34: 0
D35: Plus: | E35: =E$24 -> Forecast RCV indexation | F35: 0 | G35: £m | H35: 0 | I35: 0 | J35: 0 | K35: 0 | L35: 0 | M35: 0 | N35: 0 | O35: 0 | P35: 0 | Q35: 0 | R35: 0
D36: Less: | E36: =E$29 -> Forecast RCV run-off | F36: 0 | G36: £m | H36: 0 | I36: 0 | J36: 0 | K36: 0 | L36: 0 | M36: 0 | N36: 0 | O36: 0 | P36: 0 | Q36: 0 | R36: 0
E37: Forecast Nominal RCV balance END | G37: £m | J37: =IF( J32 = 1, $F31, J34 + J35 - J36) -> 0 | K37: 0 | L37: 0 | M37: 0 | N37: 0 | O37: 0 | P37: 0 | Q37: 0 | R37: 0
E39: =E$27 -> Forecast Nominal RCV balance BEG | F39: 0 | G39: £m | H39: 0 | I39: 0 | J39: 0 | K39: 0 | L39: 0 | M39: 0 | N39: 0 | O39: 0 | P39: 0 | Q39: 0 | R39: 0
E40: =E$24 -> Forecast RCV indexation | F40: 0 | G40: £m | H40: 0 | I40: 0 | J40: 0 | K40: 0 | L40: 0 | M40: 0 | N40: 0 | O40: 0 | P40: 0 | Q40: 0 | R40: 0
E41: =E$37 -> Forecast Nominal RCV balance END | F41: 0 | G41: £m | H41: 0 | I41: 0 | J41: 0 | K41: 0 | L41: 0 | M41: 0 | N41: 0 | O41: 0 | P41: 0 | Q41: 0 | R41: 0
E42: Forecast RCV average balance | G42: £m | J42: =( (J39+J40) + J41) / 2 -> 0 | K42: 0 | L42: 0 | M42: =( (M39+M40) + M41) / 2 -> 0 | N42: =( (N39+N40) + N41) / 2 -> 0 | O42: 0 | P42: 0 | Q42: 0 | R42: 0
B44: Forecast return on RCV
E45: =InpR!E$85 -> Real RPI based WACC | F45: =InpR!F$85 -> 0 | G45: =InpR!G$85 -> % | H45: =InpR!H$85 -> 0 | I45: =InpR!I$85 -> 0 | J45: =InpR!J$85 -> 0 | K45: =InpR!K$85 -> 0 | L45: =InpR!L$85 -> 0 | M45: =InpR!M$85 -> 0 | N45: =InpR!N$85 -> 0 | O45: =InpR!O$85 -> 0 | P45: =InpR!P$85 -> 0 | Q45: =InpR!Q$85 -> 0 | R45: =InpR!R$98 -> 0
E46: =Time!E$54 -> Forecast Period Flag | F46: =Time!F$54 -> 0 | G46: =Time!G$54 -> flag | H46: =Time!H$54 -> 5 | I46: =Time!I$54 -> 0 | J46: =Time!J$54 -> 0 | K46: =Time!K$54 -> 0 | L46: =Time!L$54 -> 0 | M46: =Time!M$54 -> 1 | N46: =Time!N$54 -> 1 | O46: =Time!O$54 -> 1 | P46: =Time!P$54 -> 1 | Q46: =Time!Q$54 -> 1 | R46: =Time!R$54 -> 0
E47: =E$42 -> Forecast RCV average balance | F47: 0 | G47: £m | H47: 0 | I47: 0 | J47: 0 | K47: 0 | L47: 0 | M47: 0 | N47: 0 | O47: 0 | P47: 0 | Q47: 0 | R47: 0
E48: Forecast nominal return | G48: £m | J48: =J45*J47*J46 -> 0 | K48: 0 | L48: =L45*L47*L46 -> 0 | M48: =M45*M47*M46 -> 0 | N48: =N45*N47*N46 -> 0 | O48: 0 | P48: 0 | Q48: 0 | R48: 0
B50: Forecast total revenue
E51: =E$29 -> Forecast RCV run-off | F51: 0 | G51: £m | H51: 0 | I51: 0 | J51: 0 | K51: 0 | L51: 0 | M51: 0 | N51: 0 | O51: 0 | P51: 0 | Q51: 0 | R51: 0
E52: =E$48 -> Forecast nominal return | F52: 0 | G52: £m | H52: 0 | I52: 0 | J52: 0 | K52: 0 | L52: 0 | M52: 0 | N52: 0 | O52: 0 | P52: 0 | Q52: 0 | R52: 0
E53: Total Forecast revenue to company | G53: =G$48 -> £m | H53: =SUM(J53:R53) -> 0 | J53: =SUM(J51:J52) -> 0 | K53: 0 | L53: =SUM(L51:L52) -> 0 | M53: 0 | N53: 0 | O53: 0 | P53: 0 | Q53: 0 | R53: 0
B55: K calculation
E56: =E$53 -> Total Forecast revenue to company | F56: 0 | G56: £m | H56: 0 | I56: 0 | J56: 0 | K56: 0 | L56: 0 | M56: 0 | N56: 0 | O56: 0 | P56: 0 | Q56: 0 | R56: 0
E57: =Time!E$54 -> Forecast Period Flag | F57: =Time!F$54 -> 0 | G57: =Time!G$54 -> flag | H57: =Time!H$54 -> 5 | I57: =Time!I$54 -> 0 | J57: =Time!J$54 -> 0 | K57: =Time!K$54 -> 0 | L57: =Time!L$54 -> 0 | M57: =Time!M$54 -> 1 | N57: =Time!N$54 -> 1 | O57: =Time!O$54 -> 1 | P57: =Time!P$54 -> 1 | Q57: =Time!Q$54 -> 1 | R57: =Time!R$54 -> 0
E58: Forecast % movement in nominal revenue | G58: % | J58: =IF(I56 = 0, 0, J56 / I56 - 1) * J57 -> 0 | K58: =IF(J56 = 0, 0, K56 / J56 - 1) * K57 -> 0 | L58: =IF(K56 = 0, 0, L56 / K56 - 1) * L57 -> 0 | M58: =IF(L56 = 0, 0, M56 / L56 - 1) * M57 -> 0 | N58: =IF(M56 = 0, 0, N56 / M56 - 1) * N57 -> 0 | O58: =IF(N56 = 0, 0, O56 / N56 - 1) * O57 -> 0 | P58: =IF(O56 = 0, 0, P56 / O56 - 1) * P57 -> 0 | Q58: =IF(P56 = 0, 0, Q56 / P56 - 1) * Q57 -> 0 | R58: =IF(Q56 = 0, 0, R56 / Q56 - 1) * R57 -> 0
E60: =E$58 -> Forecast % movement in nominal revenue | F60: 0 | G60: % | H60: 0 | I60: 0 | J60: 0 | K60: 0 | L60: 0 | M60: 0 | N60: 0 | O60: 0 | P60: 0 | Q60: 0 | R60: 0
D61: less | E61: =Index!E$49 -> CPI(H): Fin year average - percentage increase - final determination | F61: =Index!F$49 -> 0 | G61: =Index!G$49 -> % | H61: =Index!H$49 -> 0 | I61: =Index!I$49 -> 0 | J61: =Index!J$49 -> 0 | K61: =Index!K$49 -> 0.0212697905 | L61: =Index!L$49 -> 0.01990965545 | M61: =Index!M$49 -> 0.01983364056 | N61: =Index!N$49 -> 0.02004198311 | O61: =Index!O$49 -> 0.0207512516 | P61: =Index!P$49 -> 0.021 | Q61: =Index!Q$49 -> 0.021 | R61: =Index!R$49 -> 0.02
E62: K | M62: =IF(M60 = 0, 0, M60 - M61) -> 0 | N62: =IF(N60 = 0, 0, N60 - N61) -> 0 | O62: 0 | P62: 0 | Q62: 0
B64: Initial revenue calculation
E65: =Time!E$40 -> Acquisition / initial balance date flag | F65: =Time!F$40 -> 0 | G65: =Time!G$40 -> flag | H65: =Time!H$40 -> 1 | I65: =Time!I$40 -> 0 | J65: =Time!J$40 -> 0 | K65: =Time!K$40 -> 0 | L65: =Time!L$40 -> 1 | M65: =Time!M$40 -> 0 | N65: =Time!N$40 -> 0 | O65: =Time!O$40 -> 0 | P65: =Time!P$40 -> 0 | Q65: =Time!Q$40 -> 0 | R65: =Time!R$40 -> 0
E66: =E$53 -> Total Forecast revenue to company | F66: 0 | G66: £m | H66: 0 | I66: 0 | J66: 0 | K66: 0 | L66: 0 | M66: 0 | N66: 0 | O66: 0 | P66: 0 | Q66: 0 | R66: 0
E67: =Index!E$49 -> CPI(H): Fin year average - percentage increase - final determination | F67: =Index!F$49 -> 0 | G67: =Index!G$49 -> % | H67: =Index!H$49 -> 0 | I67: =Index!I$49 -> 0 | J67: =Index!J$49 -> 0 | K67: =Index!K$49 -> 0.0212697905 | L67: =Index!L$49 -> 0.01990965545 | M67: =Index!M$49 -> 0.01983364056 | N67: =Index!N$49 -> 0.02004198311 | O67: =Index!O$49 -> 0.0207512516 | P67: =Index!P$49 -> 0.021 | Q67: =Index!Q$49 -> 0.021 | R67: =Index!R$49 -> 0.02
E68: Pre Forecast allowed revenue | G68: £m | J68: =IF( J65 = 1,K66 / ( 1 + K67 ), 0) -> 0 | K68: =IF( K65 = 1,L66 / ( 1 + L67 ), 0) -> 0 | L68: =IF( L65 = 1,M66 / ( 1 + M67 ), 0) -> 0 | M68: 0 | N68: 0 | O68: 0 | P68: 0 | Q68: 0 | R68: =IF( R65 = 1,#REF! / ( 1 +#REF! ), 0) -> 0
E70: =E$68 -> Pre Forecast allowed revenue | F70: 0 | G70: £m | H70: 0 | I70: 0 | J70: 0 | K70: 0 | L70: 0 | M70: 0 | N70: 0 | O70: 0 | P70: 0 | Q70: 0 | R70: 0
E71: Pre Forecast allowed revenue for K calcs | F71: =SUM(J70:R70) -> 0 | G71: £m
A73: What the company actually experienced
C75: This section calculates the revenue that the company actually receives.
C76: The CPIH + K mechanism in the licence is designed to compensate companies for varitions in actual and forecast CPIH.
C77: The model therefore assumes that forecast and actual CPIH are identical so that the impact of variations in the CPIH RPI wedge can be viewed.
E79: =E$71 -> Pre Forecast allowed revenue for K calcs | F79: =F$71 -> 0 | G79: =G$71 -> £m
E80: =E$62 -> K | G80: % | H80: =H$62 -> 0 | I80: 0 | J80: 0 | K80: 0 | L80: 0 | M80: 0 | N80: 0 | O80: 0 | P80: 0 | Q80: 0 | R80: 0
E81: =Index!E$49 -> CPI(H): Fin year average - percentage increase - final determination | F81: =Index!F$49 -> 0 | G81: =Index!G$49 -> % | H81: =Index!H$49 -> 0 | I81: =Index!I$49 -> 0 | J81: =Index!J$49 -> 0 | K81: =Index!K$49 -> 0.0212697905 | L81: =Index!L$49 -> 0.01990965545 | M81: =Index!M$49 -> 0.01983364056 | N81: =Index!N$49 -> 0.02004198311 | O81: =Index!O$49 -> 0.0207512516 | P81: =Index!P$49 -> 0.021 | Q81: =Index!Q$49 -> 0.021 | R81: =Index!R$49 -> 0.02
E82: =Time!E$40 -> Acquisition / initial balance date flag | F82: =Time!F$40 -> 0 | G82: =Time!G$40 -> flag | H82: =Time!H$40 -> 1 | I82: =Time!I$40 -> 0 | J82: =Time!J$40 -> 0 | K82: =Time!K$40 -> 0 | L82: =Time!L$40 -> 1 | M82: =Time!M$40 -> 0 | N82: =Time!N$40 -> 0 | O82: =Time!O$40 -> 0 | P82: =Time!P$40 -> 0 | Q82: =Time!Q$40 -> 0 | R82: =Time!R$40 -> 0
E83: Actual nominal revenue | G83: £m | L83: =IF(L82=1,$F79,K83*(1+L80+L81)) -> 0 | M83: =IF(M82=1,$F79,L83*(1+M80+M81)) -> 0 | N83: =IF(N82=1,$F79,M83*(1+N80+N81)) -> 0 | O83: 0 | P83: 0 | Q83: 0 | R83: =IF(R82=1,$F79,Q83*(1+R80+R81)) -> 0
A85: What the company should have experienced
C87: This section calculates the revenue that the company should have been allowed, assuming that Ofwat had perfect foresight of the actual RPI CPIH wedge.
B89: Inflation based on actual wedge
E90: =Index!E$49 -> CPI(H): Fin year average - percentage increase - final determination | F90: =Index!F$49 -> 0 | G90: =Index!G$49 -> % | H90: =Index!H$49 -> 0 | I90: =Index!I$49 -> 0 | J90: =Index!J$49 -> 0 | K90: =Index!K$49 -> 0.0212697905 | L90: =Index!L$49 -> 0.01990965545 | M90: =Index!M$49 -> 0.01983364056 | N90: =Index!N$49 -> 0.02004198311 | O90: =Index!O$49 -> 0.0207512516 | P90: =Index!P$49 -> 0.021 | Q90: =Index!Q$49 -> 0.021 | R90: =Index!R$49 -> 0.02
E91: =Index!E$137 -> Actual RPI/CPIH wedge - actual (including forecast) | F91: =Index!F$137 -> 0 | G91: =Index!G$137 -> % | H91: =Index!H$137 -> 0 | I91: =Index!I$137 -> 0 | J91: =Index!J$137 -> 0 | K91: =Index!K$137 -> 0 | L91: =Index!L$137 -> 0 | M91: =Index!M$137 -> 0 | N91: =Index!N$137 -> 0 | O91: =Index!O$137 -> 0 | P91: =Index!P$137 -> 0 | Q91: =Index!Q$137 -> 0 | R91: =Index!R$137 -> 0
E92: Actual Indexation percentage | J92: =SUM(J90:J91) -> 0 | K92: =SUM(K90:K91) -> 0.0212697905 | L92: =SUM(L90:L91) -> 0.01990965545 | M92: =SUM(M90:M91) -> 0.01983364056 | N92: =SUM(N90:N91) -> 0.02004198311 | O92: =SUM(O90:O91) -> 0.0207512516 | P92: =SUM(P90:P91) -> 0.021 | Q92: =SUM(Q90:Q91) -> 0.021 | R92: =SUM(R90:R91) -> 0.02
B94: RCV balance based on actual wedge
E95: =E$107 -> Actual Nominal RCV balance BEG | F95: 0 | G95: £m | H95: 0 | I95: 0 | J95: 0 | K95: 0 | L95: 0 | M95: 0 | N95: 0 | O95: 0 | P95: 0 | Q95: 0 | R95: 0
E96: =E$92 -> Actual Indexation percentage | F96: 0 | G96: 0 | H96: 0 | I96: 0 | J96: 0 | K96: 0.0212697905 | L96: 0.01990965545 | M96: 0.01983364056 | N96: 0.02004198311 | O96: 0.0207512516 | P96: 0.021 | Q96: 0.021 | R96: 0.02
E97: Actual RCV indexation | G97: £m | J97: =J95*J96 -> 0 | K97: 0 | L97: 0 | M97: =M95*M96 -> 0 | N97: =N95*N96 -> 0 | O97: 0 | P97: 0 | Q97: 0 | R97: 0
E99: =InpR!E$78 -> RCV run-off rate | F99: =InpR!F$78 -> 0 | G99: =InpR!G$78 -> % | H99: =InpR!H$78 -> 0 | I99: =InpR!I$78 -> 0 | J99: =InpR!J$78 -> 0 | K99: =InpR!K$78 -> 0 | L99: =InpR!L$78 -> 0 | M99: =InpR!M$78 -> 0 | N99: =InpR!N$78 -> 0 | O99: =InpR!O$78 -> 0 | P99: =InpR!P$78 -> 0 | Q99: =InpR!Q$78 -> 0 | R99: =InpR!R$96 -> 0
E100: =E$107 -> Actual Nominal RCV balance BEG | F100: 0 | G100: £m | H100: 0 | I100: 0 | J100: 0 | K100: 0 | L100: 0 | M100: 0 | N100: 0 | O100: 0 | P100: 0 | Q100: 0 | R100: 0
E101: =E$97 -> Actual RCV indexation | F101: 0 | G101: £m | H101: 0 | I101: 0 | J101: 0 | K101: 0 | L101: 0 | M101: 0 | N101: 0 | O101: 0 | P101: 0 | Q101: 0 | R101: 0
E102: RCV run-off company should have received | G102: £m | J102: =(J100+J101) * J99 -> 0 | K102: =(K100+K101) * K99 -> 0 | L102: =(L100+L101) * L99 -> 0 | M102: 0 | N102: =(N100+N101) * N99 -> 0 | O102: 0 | P102: 0 | Q102: 0 | R102: 0
E104: =InpC!E$34 -> Actual Nominal RCV - initial balance | F104: =InpC!F$34 -> 0 | G104: =InpC!G$34 -> £m
E105: =Time!E$40 -> Acquisition / initial balance date flag | F105: =Time!F$40 -> 0 | G105: =Time!G$40 -> flag | H105: =Time!H$40 -> 1 | I105: =Time!I$40 -> 0 | J105: =Time!J$40 -> 0 | K105: =Time!K$40 -> 0 | L105: =Time!L$40 -> 1 | M105: =Time!M$40 -> 0 | N105: =Time!N$40 -> 0 | O105: =Time!O$40 -> 0 | P105: =Time!P$40 -> 0 | Q105: =Time!Q$40 -> 0 | R105: =Time!R$40 -> 0
E107: Actual Nominal RCV balance BEG | G107: £m | J107: =I110 -> 0 | K107: =J110 -> 0 | L107: =K110 -> 0 | M107: =L110 -> 0 | N107: =M110 -> 0 | O107: =N110 -> 0 | P107: =O110 -> 0 | Q107: =P110 -> 0 | R107: =Q110 -> 0
D108: Plus: | E108: =E$97 -> Actual RCV indexation | F108: 0 | G108: £m | H108: 0 | I108: 0 | J108: 0 | K108: 0 | L108: 0 | M108: 0 | N108: 0 | O108: 0 | P108: 0 | Q108: 0 | R108: 0
D109: Less: | E109: =E$102 -> RCV run-off company should have received | F109: 0 | G109: £m | H109: 0 | I109: 0 | J109: 0 | K109: 0 | L109: 0 | M109: 0 | N109: 0 | O109: 0 | P109: 0 | Q109: 0 | R109: 0
E110: Actual Nominal RCV balance END | G110: £m | J110: =IF( J105 = 1, $F104, J107 + J108 - J109) -> 0 | K110: 0 | L110: 0 | M110: 0 | N110: 0 | O110: 0 | P110: 0 | Q110: 0 | R110: 0
E112: =E$107 -> Actual Nominal RCV balance BEG | F112: 0 | G112: £m | H112: 0 | I112: 0 | J112: 0 | K112: 0 | L112: 0 | M112: 0 | N112: 0 | O112: 0 | P112: 0 | Q112: 0 | R112: 0
E113: =E$108 -> Actual RCV indexation | F113: 0 | G113: £m | H113: 0 | I113: 0 | J113: 0 | K113: 0 | L113: 0 | M113: 0 | N113: 0 | O113: 0 | P113: 0 | Q113: 0 | R113: 0
E114: =E$110 -> Actual Nominal RCV balance END | F114: 0 | G114: £m | H114: 0 | I114: 0 | J114: 0 | K114: 0 | L114: 0 | M114: 0 | N114: 0 | O114: 0 | P114: 0 | Q114: 0 | R114: 0
E115: Actual average RCV balance | G115: £m | J115: =( (J112+J113) + J114) / 2 -> 0 | K115: =( (K112+K113) + K114) / 2 -> 0 | L115: =( (L112+L113) + L114) / 2 -> 0 | M115: =( (M112+M113) + M114) / 2 -> 0 | N115: =( (N112+N113) + N114) / 2 -> 0 | O115: =( (O112+O113) + O114) / 2 -> 0 | P115: =( (P112+P113) + P114) / 2 -> 0 | Q115: =( (Q112+Q113) + Q114) / 2 -> 0 | R115: =( (R112+R113) + R114) / 2 -> 0
B117: RCV returns based on actual wedge
E118: =InpR!E$85 -> Real RPI based WACC | F118: =InpR!F$85 -> 0 | G118: =InpR!G$85 -> % | H118: =InpR!H$85 -> 0 | I118: =InpR!I$85 -> 0 | J118: =InpR!J$85 -> 0 | K118: =InpR!K$85 -> 0 | L118: =InpR!L$85 -> 0 | M118: =InpR!M$85 -> 0 | N118: =InpR!N$85 -> 0 | O118: =InpR!O$85 -> 0 | P118: =InpR!P$85 -> 0 | Q118: =InpR!Q$85 -> 0 | R118: =InpR!R$98 -> 0
E119: =Time!E$54 -> Forecast Period Flag | F119: =Time!F$54 -> 0 | G119: =Time!G$54 -> flag | H119: =Time!H$54 -> 5 | I119: =Time!I$54 -> 0 | J119: =Time!J$54 -> 0 | K119: =Time!K$54 -> 0 | L119: =Time!L$54 -> 0 | M119: =Time!M$54 -> 1 | N119: =Time!N$54 -> 1 | O119: =Time!O$54 -> 1 | P119: =Time!P$54 -> 1 | Q119: =Time!Q$54 -> 1 | R119: =Time!R$54 -> 0
E120: =E$115 -> Actual average RCV balance | F120: 0 | G120: £m | H120: 0 | I120: 0 | J120: 0 | K120: 0 | L120: 0 | M120: 0 | N120: 0 | O120: 0 | P120: 0 | Q120: 0 | R120: 0
E121: Nominal return company should have received | G121: £m | J121: =J118*J119*J120 -> 0 | K121: 0 | L121: =L118*L119*L120 -> 0 | M121: =M118*M119*M120 -> 0 | N121: =N118*N119*N120 -> 0 | O121: 0 | P121: 0 | Q121: 0 | R121: 0
E123: =Time!E$50 -> Last Forecast Period Flag | F123: =Time!F$50 -> 0 | G123: =Time!G$50 -> flag | H123: =Time!H$50 -> 1 | I123: =Time!I$50 -> 0 | J123: =Time!J$50 -> 0 | K123: =Time!K$50 -> 0 | L123: =Time!L$50 -> 0 | M123: =Time!M$50 -> 0 | N123: =Time!N$50 -> 0 | O123: =Time!O$50 -> 0 | P123: =Time!P$50 -> 0 | Q123: =Time!Q$50 -> 1 | R123: =Time!R$50 -> 0
E124: =E$110 -> Actual Nominal RCV balance END | F124: 0 | G124: £m | H124: 0 | I124: 0 | J124: 0 | K124: 0 | L124: 0 | M124: 0 | N124: 0 | O124: 0 | P124: 0 | Q124: 0 | R124: 0
E125: Actual Nominal RCV residual balance | J125: =J124 * J123 -> 0 | K125: =K124 * K123 -> 0 | L125: =L124 * L123 -> 0 | M125: =M124 * M123 -> 0 | N125: =N124 * N123 -> 0 | O125: =O124 * O123 -> 0 | P125: =P124 * P123 -> 0 | Q125: =Q124 * Q123 -> 0 | R125: =R124 * R123 -> 0
B127: Revenue based on actual wedge
E128: =E$102 -> RCV run-off company should have received | F128: 0 | G128: £m | H128: 0 | I128: 0 | J128: 0 | K128: 0 | L128: 0 | M128: 0 | N128: 0 | O128: 0 | P128: 0 | Q128: 0 | R128: 0
E129: =E$121 -> Nominal return company should have received | F129: 0 | G129: £m | H129: 0 | I129: 0 | J129: 0 | K129: 0 | L129: 0 | M129: 0 | N129: 0 | O129: 0 | P129: 0 | Q129: 0 | R129: 0
E130: Total nominal revenue company should have received | G130: £m | H130: =SUM(J130:R130) -> 0 | J130: =SUM(J128:J129) -> 0 | K130: 0 | L130: 0 | M130: 0 | N130: 0 | O130: 0 | P130: 0 | Q130: 0 | R130: 0
A132: Difference
C134: This section compares the actual revenue the company received with the revenue Ofwat would have allowed if it had perfect foresight of the RPI CPIH wedge.
E136: =E$83 -> Actual nominal revenue | F136: =F$83 -> 0 | G136: £m | H136: 0 | I136: 0 | J136: 0 | K136: 0 | L136: 0 | M136: 0 | N136: 0 | O136: 0 | P136: 0 | Q136: 0 | R136: =R$83 -> 0
E137: =E$130 -> Total nominal revenue company should have received | F137: 0 | G137: £m | H137: 0 | I137: 0 | J137: 0 | K137: 0 | L137: 0 | M137: 0 | N137: 0 | O137: 0 | P137: 0 | Q137: 0 | R137: 0
E138: Difference in nominal revenue | G138: =G$121 -> £m | H138: =SUM(J138:R138) -> 0 | M138: =M137-M136 -> 0 | N138: =N137-N136 -> 0 | O138: 0 | P138: 0 | Q138: 0
A140: True up
C142: This section works out the value of the true up to be applied.
C143: The CPIH + K mechanism in the licence is designed to adjust revenues for changes in CPIH from forecast.
C144: The true up mechanism therefore does not need to do this. Forecast CPIH, rather than actual CPIH should therefore be used in when applying the true up.
E146: =Index!E$49 -> CPI(H): Fin year average - percentage increase - final determination | F146: =Index!F$49 -> 0 | G146: =Index!G$49 -> % | H146: =Index!H$49 -> 0 | I146: =Index!I$49 -> 0 | J146: =Index!J$49 -> 0 | K146: =Index!K$49 -> 0.0212697905 | L146: =Index!L$49 -> 0.01990965545 | M146: =Index!M$49 -> 0.01983364056 | N146: =Index!N$49 -> 0.02004198311 | O146: =Index!O$49 -> 0.0207512516 | P146: =Index!P$49 -> 0.021 | Q146: =Index!Q$49 -> 0.021 | R146: =Index!R$49 -> 0.02
E147: =Index!E$72 -> Forecast RPI/CPIH wedge - final determination | F147: =Index!F$72 -> 0 | G147: =Index!G$72 -> % | H147: =Index!H$72 -> 0 | I147: =Index!I$72 -> 0 | J147: =Index!J$72 -> 0 | K147: =Index!K$72 -> 0.009285849258 | L147: =Index!L$72 -> 0.01161248526 | M147: =Index!M$72 -> 0.004424450951 | N147: =Index!N$72 -> 0.009545665577 | O147: =Index!O$72 -> 0.01075243168 | P147: =Index!P$72 -> 0.011 | Q147: =Index!Q$72 -> 0.011 | R147: =Index!R$72 -> 0.01
E148: True up Indexation percentage | J148: =SUM(J146:J147) -> 0 | K148: 0.03055563976 | L148: 0.03152214071 | M148: =SUM(M146:M147) -> 0.02425809151 | N148: =SUM(N146:N147) -> 0.02958764869 | O148: 0.03150368327 | P148: 0.032 | Q148: 0.032 | R148: 0.03
E150: =E$162 -> True up Nominal RCV balance BEG | F150: 0 | G150: £m | H150: 0 | I150: 0 | J150: 0 | K150: 0 | L150: 0 | M150: 0 | N150: 0 | O150: 0 | P150: 0 | Q150: 0 | R150: 0
E151: =E$148 -> True up Indexation percentage | F151: 0 | G151: 0 | H151: 0 | I151: 0 | J151: 0 | K151: 0.03055563976 | L151: 0.03152214071 | M151: 0.02425809151 | N151: 0.02958764869 | O151: 0.03150368327 | P151: 0.032 | Q151: 0.032 | R151: 0.03
E152: True up RCV indexation | G152: £m | J152: =J150*J151 -> 0 | K152: =K150*K151 -> 0 | L152: =L150*L151 -> 0 | M152: =M150*M151 -> 0 | N152: =N150*N151 -> 0 | O152: =O150*O151 -> 0 | P152: =P150*P151 -> 0 | Q152: =Q150*Q151 -> 0 | R152: =R150*R151 -> 0
E154: =InpR!E$78 -> RCV run-off rate | F154: =InpR!F$78 -> 0 | G154: =InpR!G$78 -> % | H154: =InpR!H$78 -> 0 | I154: =InpR!I$78 -> 0 | J154: =InpR!J$78 -> 0 | K154: =InpR!K$78 -> 0 | L154: =InpR!L$78 -> 0 | M154: =InpR!M$78 -> 0 | N154: =InpR!N$78 -> 0 | O154: =InpR!O$78 -> 0 | P154: =InpR!P$78 -> 0 | Q154: =InpR!Q$78 -> 0 | R154: =InpR!R$96 -> 0
E155: =E$162 -> True up Nominal RCV balance BEG | F155: 0 | G155: £m | H155: 0 | I155: 0 | J155: 0 | K155: 0 | L155: 0 | M155: 0 | N155: 0 | O155: 0 | P155: 0 | Q155: 0 | R155: 0
E156: =E$152 -> True up RCV indexation | F156: 0 | G156: £m | H156: 0 | I156: 0 | J156: 0 | K156: 0 | L156: 0 | M156: 0 | N156: 0 | O156: 0 | P156: 0 | Q156: 0 | R156: 0
E157: True up Nominal RCV run-off | G157: £m | J157: =(J155+J156) * J154 -> 0 | K157: 0 | L157: 0 | M157: =(M155+M156) * M154 -> 0 | N157: 0 | O157: 0 | P157: 0 | Q157: 0 | R157: 0
E159: =InpC!E$36 -> True up Nominal RCV - initial balance | F159: =InpC!F$36 -> 0 | G159: =InpC!G$36 -> £m
E160: =Time!E$40 -> Acquisition / initial balance date flag | F160: =Time!F$40 -> 0 | G160: =Time!G$40 -> flag | H160: =Time!H$40 -> 1 | I160: =Time!I$40 -> 0 | J160: =Time!J$40 -> 0 | K160: =Time!K$40 -> 0 | L160: =Time!L$40 -> 1 | M160: =Time!M$40 -> 0 | N160: =Time!N$40 -> 0 | O160: =Time!O$40 -> 0 | P160: =Time!P$40 -> 0 | Q160: =Time!Q$40 -> 0 | R160: =Time!R$40 -> 0
E162: True up Nominal RCV balance BEG | G162: £m | J162: =I165 -> 0 | K162: =J165 -> 0 | L162: =K165 -> 0 | M162: =L165 -> 0 | N162: =M165 -> 0 | O162: =N165 -> 0 | P162: =O165 -> 0 | Q162: =P165 -> 0 | R162: =Q165 -> 0
D163: Plus: | E163: =E$152 -> True up RCV indexation | F163: 0 | G163: £m | H163: 0 | I163: 0 | J163: 0 | K163: 0 | L163: 0 | M163: 0 | N163: 0 | O163: 0 | P163: 0 | Q163: 0 | R163: 0
D164: Less: | E164: =E$157 -> True up Nominal RCV run-off | F164: 0 | G164: £m | H164: 0 | I164: 0 | J164: 0 | K164: 0 | L164: 0 | M164: 0 | N164: 0 | O164: 0 | P164: 0 | Q164: 0 | R164: 0
E165: True up Nominal RCV balance END | G165: £m | J165: =IF( J160 = 1, $F159, J162 + J163 - J164) -> 0 | K165: 0 | L165: 0 | M165: 0 | N165: 0 | O165: 0 | P165: 0 | Q165: 0 | R165: 0
E167: =E$162 -> True up Nominal RCV balance BEG | F167: 0 | G167: £m | H167: 0 | I167: 0 | J167: 0 | K167: 0 | L167: 0 | M167: 0 | N167: 0 | O167: 0 | P167: 0 | Q167: 0 | R167: 0
E168: =E$152 -> True up RCV indexation | F168: 0 | G168: £m | H168: 0 | I168: 0 | J168: 0 | K168: 0 | L168: 0 | M168: 0 | N168: 0 | O168: 0 | P168: 0 | Q168: 0 | R168: 0
E169: =E$165 -> True up Nominal RCV balance END | F169: 0 | G169: £m | H169: 0 | I169: 0 | J169: 0 | K169: 0 | L169: 0 | M169: 0 | N169: 0 | O169: 0 | P169: 0 | Q169: 0 | R169: 0
E170: True up Nominal RCV average balance | G170: £m | J170: =( (J167+J168) + J169) / 2 -> 0 | K170: 0 | L170: 0 | M170: =( (M167+M168) + M169) / 2 -> 0 | N170: =( (N167+N168) + N169) / 2 -> 0 | O170: 0 | P170: 0 | Q170: 0 | R170: 0
E172: =InpR!E$85 -> Real RPI based WACC | F172: =InpR!F$85 -> 0 | G172: =InpR!G$85 -> % | H172: =InpR!H$85 -> 0 | I172: =InpR!I$85 -> 0 | J172: =InpR!J$85 -> 0 | K172: =InpR!K$85 -> 0 | L172: =InpR!L$85 -> 0 | M172: =InpR!M$85 -> 0 | N172: =InpR!N$85 -> 0 | O172: =InpR!O$85 -> 0 | P172: =InpR!P$85 -> 0 | Q172: =InpR!Q$85 -> 0 | R172: =InpR!R$98 -> 0
E173: =Time!E$54 -> Forecast Period Flag | F173: =Time!F$54 -> 0 | G173: =Time!G$54 -> flag | H173: =Time!H$54 -> 5 | I173: =Time!I$54 -> 0 | J173: =Time!J$54 -> 0 | K173: =Time!K$54 -> 0 | L173: =Time!L$54 -> 0 | M173: =Time!M$54 -> 1 | N173: =Time!N$54 -> 1 | O173: =Time!O$54 -> 1 | P173: =Time!P$54 -> 1 | Q173: =Time!Q$54 -> 1 | R173: =Time!R$54 -> 0
E174: =E$170 -> True up Nominal RCV average balance | F174: 0 | G174: £m | H174: 0 | I174: 0 | J174: 0 | K174: 0 | L174: 0 | M174: 0 | N174: 0 | O174: 0 | P174: 0 | Q174: 0 | R174: 0
E175: True up Nominal return | G175: £m | J175: =J172*J173*J174 -> 0 | K175: 0 | L175: =L172*L173*L174 -> 0 | M175: =M172*M173*M174 -> 0 | N175: 0 | O175: 0 | P175: 0 | Q175: 0 | R175: 0
E177: =E$157 -> True up Nominal RCV run-off | F177: 0 | G177: £m | H177: 0 | I177: 0 | J177: 0 | K177: 0 | L177: 0 | M177: 0 | N177: 0 | O177: 0 | P177: 0 | Q177: 0 | R177: 0
E178: =E$175 -> True up Nominal return | F178: 0 | G178: £m | H178: 0 | I178: 0 | J178: 0 | K178: 0 | L178: 0 | M178: 0 | N178: 0 | O178: 0 | P178: 0 | Q178: 0 | R178: 0
E179: Total True up Nominal revenue to company | G179: =G$177 -> £m | H179: =SUM(J179:R179) -> 0 | J179: =SUM(J177:J178) -> 0 | K179: 0 | L179: =SUM(L177:L178) -> 0 | M179: 0 | N179: 0 | O179: 0 | P179: 0 | Q179: 0 | R179: 0
E181: =E$179 -> Total True up Nominal revenue to company | F181: 0 | G181: £m | H181: 0 | I181: 0 | J181: 0 | K181: 0 | L181: 0 | M181: 0 | N181: 0 | O181: 0 | P181: 0 | Q181: 0 | R181: 0
E182: =E$130 -> Total nominal revenue company should have received | F182: 0 | G182: £m | H182: 0 | I182: 0 | J182: 0 | K182: 0 | L182: 0 | M182: 0 | N182: 0 | O182: 0 | P182: 0 | Q182: 0 | R182: 0
E183: Value of True up nominal | G183: =G$175 -> £m | H183: =SUM(J183:R183) -> 0 | J183: =J182-J181 -> 0 | K183: 0 | L183: =L182-L181 -> 0 | M183: =M182-M181 -> 0 | N183: =N182-N181 -> 0 | O183: 0 | P183: 0 | Q183: 0 | R183: 0
E185: =E$183 -> Value of True up nominal | F185: 0 | G185: £m | H185: 0 | I185: 0 | J185: 0 | K185: 0 | L185: 0 | M185: 0 | N185: 0 | O185: 0 | P185: 0 | Q185: 0 | R185: 0
E186: =E$138 -> Difference in nominal revenue | F186: 0 | G186: £m | H186: 0 | I186: 0 | J186: 0 | K186: 0 | L186: 0 | M186: 0 | N186: 0 | O186: 0 | P186: 0 | Q186: 0 | R186: 0
E187: True-up correctly calculates revenue adjustment | F187: =SUM(J187:R187) -> 0 | G187: check | J187: =IF( ABS(J185-J186)>ChK_Tol,1,0) -> 0 | K187: 0 | L187: 0 | M187: 0 | N187: 0 | O187: 0 | P187: 0 | Q187: 0 | R187: 0
M188: =M185=M186 -> TRUE | N188: =N185=N186 -> TRUE | O188: TRUE | P188: TRUE | Q188: TRUE
A189: RCV expressed in real terms
E191: =E$42 & " - nominal" -> Forecast RCV average balance - nominal | F191: =F$42 -> 0 | G191: £m | H191: 0 | I191: 0 | J191: 0 | K191: 0 | L191: 0 | M191: 0 | N191: 0 | O191: 0 | P191: 0 | Q191: 0 | R191: 0
E192: =E$115 & " - nominal" -> Actual average RCV balance - nominal | F192: =F$115 -> 0 | G192: £m | H192: 0 | I192: 0 | J192: 0 | K192: 0 | L192: 0 | M192: 0 | N192: 0 | O192: 0 | P192: 0 | Q192: 0 | R192: 0
E193: =Index!E$48 -> CPI(H): Fin year average - inflate from base year 2017-18 average - final determination | F193: =Index!F$48 -> 0 | G193: =Index!G$48 -> % | H193: =Index!H$48 -> 0 | I193: =Index!I$48 -> 0 | J193: =Index!J$48 -> 0 | K193: =Index!K$48 -> 1.021269791 | L193: =Index!L$48 -> 1.04160292 | M193: =Index!M$48 -> 1.062261698 | N193: =Index!N$48 -> 1.083551529 | O193: =Index!O$48 -> 1.106036579 | P193: =Index!P$48 -> 1.129263348 | Q193: =Index!Q$48 -> 1.152977878 | R193: =Index!R$48 -> 1.176037436
E194: =E$42 & " - real" -> Forecast RCV average balance - real | G194: £m | J194: =IF(J$193 = 0, 0, J191 / J$193) -> 0 | K194: 0 | L194: 0 | M194: 0 | N194: 0 | O194: 0 | P194: 0 | Q194: 0 | R194: 0
E195: =E$115 & " - real" -> Actual average RCV balance - real | G195: £m | J195: =IF(J$193 = 0, 0, J192 / J$193) -> 0 | K195: 0 | L195: 0 | M195: 0 | N195: 0 | O195: 0 | P195: 0 | Q195: 0 | R195: 0
E196: Difference RCV average - real | G196: £m | J196: =J195-J194 -> 0 | K196: =K195-K194 -> 0 | L196: 0 | M196: 0 | N196: 0 | O196: 0 | P196: 0 | Q196: 0 | R196: 0
E198: =E$196 -> Difference RCV average - real | F198: =F$196 -> 0 | G198: £m | H198: 0 | I198: 0 | J198: 0 | K198: 0 | L198: 0 | M198: 0 | N198: 0 | O198: 0 | P198: 0 | Q198: 0 | R198: 0
E199: =Time!E$64 -> Last Forecast Period Flag | F199: =Time!F$64 -> 0 | G199: =Time!G$64 -> flag | H199: =Time!H$64 -> 1 | I199: =Time!I$64 -> 0 | J199: =Time!J$64 -> 0 | K199: =Time!K$64 -> 0 | L199: =Time!L$64 -> 0 | M199: =Time!M$64 -> 0 | N199: =Time!N$64 -> 0 | O199: =Time!O$64 -> 0 | P199: =Time!P$64 -> 0 | Q199: =Time!Q$64 -> 1 | R199: =Time!R$64 -> 0
E200: RCV adjustment at end of period - real | G200: £m | J200: =J198 * J199 -> 0 | K200: =K198 * K199 -> 0 | L200: 0 | M200: 0 | N200: 0 | O200: 0 | P200: 0 | Q200: 0 | R200: 0
A202: Revenue expressed in real terms and with time value of money adjustment applied
E204: =E$157 -> True up Nominal RCV run-off | F204: =F$157 -> 0 | G204: £m | H204: 0 | I204: 0 | J204: 0 | K204: 0 | L204: 0 | M204: 0 | N204: 0 | O204: 0 | P204: 0 | Q204: 0 | R204: 0
E205: =E$175 -> True up Nominal return | F205: =F$175 -> 0 | G205: £m | H205: 0 | I205: 0 | J205: 0 | K205: 0 | L205: 0 | M205: 0 | N205: 0 | O205: 0 | P205: 0 | Q205: 0 | R205: 0
E206: =E$179 -> Total True up Nominal revenue to company | F206: =F$179 -> 0 | G206: £m | H206: 0 | I206: 0 | J206: 0 | K206: 0 | L206: 0 | M206: 0 | N206: 0 | O206: 0 | P206: 0 | Q206: 0 | R206: 0
E207: =E$128 -> RCV run-off company should have received | F207: =F$128 -> 0 | G207: £m | H207: 0 | I207: 0 | J207: 0 | K207: 0 | L207: 0 | M207: 0 | N207: 0 | O207: 0 | P207: 0 | Q207: 0 | R207: 0
E208: =E$129 -> Nominal return company should have received | F208: =F$129 -> 0 | G208: £m | H208: 0 | I208: 0 | J208: 0 | K208: 0 | L208: 0 | M208: 0 | N208: 0 | O208: 0 | P208: 0 | Q208: 0 | R208: 0
E209: =E$130 -> Total nominal revenue company should have received | F209: =F$130 -> 0 | G209: £m | H209: 0 | I209: 0 | J209: 0 | K209: 0 | L209: 0 | M209: 0 | N209: 0 | O209: 0 | P209: 0 | Q209: 0 | R209: 0
E210: =Index!E$48 -> CPI(H): Fin year average - inflate from base year 2017-18 average - final determination | F210: =Index!F$48 -> 0 | G210: =Index!G$48 -> % | H210: =Index!H$48 -> 0 | I210: =Index!I$48 -> 0 | J210: =Index!J$48 -> 0 | K210: =Index!K$48 -> 1.021269791 | L210: =Index!L$48 -> 1.04160292 | M210: =Index!M$48 -> 1.062261698 | N210: =Index!N$48 -> 1.083551529 | O210: =Index!O$48 -> 1.106036579 | P210: =Index!P$48 -> 1.129263348 | Q210: =Index!Q$48 -> 1.152977878 | R210: =Index!R$48 -> 1.176037436
E211: =E204 & "- real" -> True up Nominal RCV run-off- real | G211: =G$177 -> £m | H211: =SUM(J211:R211) -> 0 | J211: =IF(J$210 = 0, 0, J204 / J$210) -> 0 | K211: 0 | L211: 0 | M211: 0 | N211: 0 | O211: 0 | P211: 0 | Q211: 0 | R211: 0
E212: True up Nominal return- real | G212: £m | H212: 0 | J212: =IF(J$210 = 0, 0, J205 / J$210) -> 0 | K212: 0 | L212: 0 | M212: 0 | N212: 0 | O212: 0 | P212: 0 | Q212: 0 | R212: 0
E213: Total True up Nominal revenue to company- real | G213: £m | H213: 0 | J213: =IF(J$210 = 0, 0, J206 / J$210) -> 0 | K213: 0 | L213: 0 | M213: 0 | N213: 0 | O213: 0 | P213: 0 | Q213: 0 | R213: 0
E214: RCV run-off company should have received- real | G214: £m | H214: 0 | J214: =IF(J$210 = 0, 0, J207 / J$210) -> 0 | K214: 0 | L214: 0 | M214: 0 | N214: 0 | O214: 0 | P214: 0 | Q214: 0 | R214: 0
E215: Nominal return company should have received- real | G215: £m | H215: 0 | J215: =IF(J$210 = 0, 0, J208 / J$210) -> 0 | K215: 0 | L215: 0 | M215: 0 | N215: 0 | O215: 0 | P215: 0 | Q215: 0 | R215: 0
E216: Total nominal revenue company should have received- real | G216: £m | H216: 0 | J216: =IF(J$210 = 0, 0, J209 / J$210) -> 0 | K216: 0 | L216: 0 | M216: 0 | N216: 0 | O216: 0 | P216: 0 | Q216: 0 | R216: 0
E218: =E$211 -> True up Nominal RCV run-off- real | F218: =F$211 -> 0 | G218: £m | H218: 0 | I218: 0 | J218: 0 | K218: 0 | L218: 0 | M218: 0 | N218: 0 | O218: 0 | P218: 0 | Q218: 0 | R218: 0
E219: =E$214 -> RCV run-off company should have received- real | F219: =F$214 -> 0 | G219: £m | H219: 0 | I219: 0 | J219: 0 | K219: 0 | L219: 0 | M219: 0 | N219: 0 | O219: 0 | P219: 0 | Q219: 0 | R219: 0
E220: Value of True up run-off - real | G220: £m | H220: =SUM(J220:R220) -> 0 | J220: =J219-J218 -> 0 | K220: 0 | L220: =L219-L218 -> 0 | M220: =M219-M218 -> 0 | N220: =N219-N218 -> 0 | O220: 0 | P220: 0 | Q220: 0 | R220: 0
E222: =E$212 -> True up Nominal return- real | F222: =F$212 -> 0 | G222: £m | H222: 0 | I222: 0 | J222: 0 | K222: 0 | L222: 0 | M222: 0 | N222: 0 | O222: 0 | P222: 0 | Q222: 0 | R222: 0
E223: =E$215 -> Nominal return company should have received- real | F223: =F$215 -> 0 | G223: £m | H223: 0 | I223: 0 | J223: 0 | K223: 0 | L223: 0 | M223: 0 | N223: 0 | O223: 0 | P223: 0 | Q223: 0 | R223: 0
E224: Value of True up return - real | G224: £m | H224: =SUM(J224:R224) -> 0 | J224: =J223-J222 -> 0 | K224: 0 | L224: =L223-L222 -> 0 | M224: =M223-M222 -> 0 | N224: =N223-N222 -> 0 | O224: 0 | P224: 0 | Q224: 0 | R224: 0
E226: =E$213 -> Total True up Nominal revenue to company- real | F226: =F$213 -> 0 | G226: £m | H226: 0 | J226: 0 | K226: 0 | L226: 0 | M226: 0 | N226: 0 | O226: 0 | P226: 0 | Q226: 0 | R226: 0
E227: =E$216 -> Total nominal revenue company should have received- real | F227: =F$216 -> 0 | G227: £m | H227: 0 | J227: 0 | K227: 0 | L227: 0 | M227: 0 | N227: 0 | O227: 0 | P227: 0 | Q227: 0 | R227: 0
E228: Value of True up total - real | G228: £m | H228: =SUM(J228:R228) -> 0 | J228: =J227-J226 -> 0 | K228: 0 | L228: =L227-L226 -> 0 | M228: =M227-M226 -> 0 | N228: =N227-N226 -> 0 | O228: 0 | P228: 0 | Q228: 0 | R228: 0
B230: Time value of money factors
E231: =InpR!E$67 -> Financing cost index | F231: =InpR!F$67 -> 0 | G231: =InpR!G$67 -> index | H231: =InpR!H$67 -> 0 | I231: =InpR!I$67 -> 0 | J231: =InpR!J$67 -> 0 | K231: =InpR!K$67 -> 0 | L231: =InpR!L$67 -> 0 | M231: =InpR!M$67 -> 4 | N231: =InpR!N$67 -> 3 | O231: =InpR!O$67 -> 2 | P231: =InpR!P$67 -> 1 | Q231: =InpR!Q$67 -> 0 | R231: =InpR!R$67 -> 0
E232: =InpR!E$92 -> Real CPIH based WACC | F232: =InpR!F$92 -> 0 | G232: =InpR!G$92 -> % | H232: =InpR!H$92 -> 0 | I232: =InpR!I$92 -> 0 | J232: =InpR!J$92 -> 0 | K232: =InpR!K$92 -> 0 | L232: =InpR!L$92 -> 0 | M232: =InpR!M$92 -> 0 | N232: =InpR!N$92 -> 0 | O232: =InpR!O$92 -> 0 | P232: =InpR!P$92 -> 0 | Q232: =InpR!Q$92 -> 0 | R232: =InpR!R$92 -> 0
E233: Time value of money factor | G233: Factor | J233: =(1 + J$232) ^ J$231 -> 1 | K233: =(1 + K$232) ^ K$231 -> 1 | L233: 1 | M233: 1 | N233: 1 | O233: 1 | P233: 1 | Q233: 1 | R233: 1
B235: Revenue adjustment for run-off
E236: =E$220 -> Value of True up run-off - real | F236: =F$220 -> 0 | G236: £m | H236: 0 | I236: 0 | J236: 0 | K236: 0 | L236: 0 | M236: 0 | N236: 0 | O236: 0 | P236: 0 | Q236: 0 | R236: 0
E237: =E$233 -> Time value of money factor | F237: =F$233 -> 0 | G237: Factor | H237: 0 | I237: 0 | J237: 1 | K237: 1 | L237: 1 | M237: 1 | N237: 1 | O237: 1 | P237: 1 | Q237: 1 | R237: 1
E238: Revenue adjustment for RCV run-off - real | G238: £m | H238: =SUM(J238:R238) -> 0 | J238: =J236 * J237 -> 0 | K238: =K236 * K237 -> 0 | L238: 0 | M238: 0 | N238: 0 | O238: 0 | P238: 0 | Q238: 0 | R238: 0
B240: Revenue adjustment for return
E241: =E224 -> Value of True up return - real | F241: =F224 -> 0 | G241: £m | H241: 0 | I241: 0 | J241: 0 | K241: 0 | L241: 0 | M241: 0 | N241: 0 | O241: 0 | P241: 0 | Q241: 0 | R241: 0
E242: =E$233 -> Time value of money factor | F242: =F$233 -> 0 | G242: Factor | H242: 0 | I242: 0 | J242: 1 | K242: 1 | L242: 1 | M242: 1 | N242: 1 | O242: 1 | P242: 1 | Q242: 1 | R242: 1
E243: Revenue adjustment for return - real | G243: £m | H243: =SUM(J243:R243) -> 0 | J243: =J241 * J242 -> 0 | K243: =K241 * K242 -> 0 | L243: =L241 * L242 -> 0 | M243: =M241 * M242 -> 0 | N243: =N241 * N242 -> 0 | O243: =O241 * O242 -> 0 | P243: =P241 * P242 -> 0 | Q243: =Q241 * Q242 -> 0 | R243: =R241 * R242 -> 0
A245: END

Sheet Adjustments
A1: =RIGHT(CELL("filename", $A$1), LEN(CELL("filename", $A$1)) - SEARCH("]", CELL("filename", $A$1))) -> Adjustments
E2: =Time!E$23 -> Model Period END | F2: =Checks!$F$9 -> 0 | G2: Error chks | J2: =Time!J$23 -> 2018-03-31 | K2: =Time!K$23 -> 2019-03-31 | L2: =Time!L$23 -> 2020-03-31 | M2: =Time!M$23 -> 2021-03-31 | N2: =Time!N$23 -> 2022-03-31 | O2: =Time!O$23 -> 2023-03-31 | P2: =Time!P$23 -> 2024-03-31 | Q2: =Time!Q$23 -> 2025-03-31 | R2: =Time!R$23 -> 2026-03-31
E3: =Time!E$59 -> Pre Forecast vs Forecast | F3: =InpC!$J$10 -> 0 | G3: Input Error | J3: =Time!J$59 -> Pre Fcst | K3: =Time!K$59 -> Pre Fcst | L3: =Time!L$59 -> Pre Fcst | M3: =Time!M$59 -> Forecast | N3: =Time!N$59 -> Forecast | O3: =Time!O$59 -> Forecast | P3: =Time!P$59 -> Forecast | Q3: =Time!Q$59 -> Forecast | R3: =Time!R$59 -> Post-Fcst
E4: =Time!E$86 -> Financial Year Ending | F4: =Checks!$F$18 -> 15 | G4: Track checks | J4: =Time!J$86 -> 2018 | K4: =Time!K$86 -> 2019 | L4: =Time!L$86 -> 2020 | M4: =Time!M$86 -> 2021 | N4: =Time!N$86 -> 2022 | O4: =Time!O$86 -> 2023 | P4: =Time!P$86 -> 2024 | Q4: =Time!Q$86 -> 2025 | R4: =Time!R$86 -> 2026
E6: =Time!E$11 -> Model column counter | F6: Constant | G6: Unit | H6: Total | J6: =Time!J$11 -> 1 | K6: =Time!K$11 -> 2 | L6: =Time!L$11 -> 3 | M6: =Time!M$11 -> 4 | N6: =Time!N$11 -> 5 | O6: =Time!O$11 -> 6 | P6: =Time!P$11 -> 7 | Q6: =Time!Q$11 -> 8 | R6: =Time!R$11 -> 9
E7: =Calcs!E$200 -> RCV adjustment at end of period - real | G7: =Calcs!G$200 -> £m | H7: =Calcs!H$200 -> 0 | J7: =Calcs!J$200 -> 0 | K7: =Calcs!K$200 -> 0 | L7: =Calcs!L$200 -> 0 | M7: =Calcs!M$200 -> 0 | N7: =Calcs!N$200 -> 0 | O7: =Calcs!O$200 -> 0 | P7: =Calcs!P$200 -> 0 | Q7: =Calcs!Q$200 -> 0 | R7: =Calcs!R$200 -> 0
E8: =Calcs!E$238 -> Revenue adjustment for RCV run-off - real | G8: =Calcs!G$238 -> £m | H8: =Calcs!H$238 -> 0 | J8: =Calcs!J$238 -> 0 | K8: =Calcs!K$238 -> 0 | L8: =Calcs!L$238 -> 0 | M8: =Calcs!M$238 -> 0 | N8: =Calcs!N$238 -> 0 | O8: =Calcs!O$238 -> 0 | P8: =Calcs!P$238 -> 0 | Q8: =Calcs!Q$238 -> 0 | R8: =Calcs!R$238 -> 0
E9: =Calcs!E$243 -> Revenue adjustment for return - real | G9: =Calcs!G$243 -> £m | H9: =Calcs!H$243 -> 0 | J9: =Calcs!J$243 -> 0 | K9: =Calcs!K$243 -> 0 | L9: =Calcs!L$243 -> 0 | M9: =Calcs!M$243 -> 0 | N9: =Calcs!N$243 -> 0 | O9: =Calcs!O$243 -> 0 | P9: =Calcs!P$243 -> 0 | Q9: =Calcs!Q$243 -> 0 | R9: =Calcs!R$243 -> 0
A11: END

Sheet Track
A1: =RIGHT(CELL("filename", $A$1), LEN(CELL("filename", $A$1)) - SEARCH("]", CELL("filename", $A$1))) -> Track | M1: do not del col
F2: =Checks!$F$9 -> 0 | G2: Error chks | J2: =SUM(J6:J162) -> 15
E3: Store Outputs | F3: =InpC!$J$10 -> 0 | G3: Input Error
F4: =Checks!$F$18 -> 15 | G4: Track checks
E5: Comparison column label | G5: Unit | H5: Nil inputs | J5: =MATCH($H$5, M5:AH5, 0) -> 2 | K5: Difference | L5: Diff Pct | N5: Nil inputs
E6: [do not delete row]
A7: INPUTS
J8: =IF(ABS(K8) > TRK_TOL, 1, 0) -> 0 | K8: =H8 - INDEX(M8:BW8, $J$5) -> 0 | L8: =IF(ABS(K8) > TRK_TOL, IF(INDEX(M8:BW8, $J$5) = 0, 0, H8 / INDEX(M8:BW8, $J$5) - 1), 0) -> 0
C9: RCV run-off rate | J9: 0 | K9: 0 | L9: 0
E10: =InpR!E$78 & " " & InpR!$M$5 -> RCV run-off rate 2021 | F10: =InpR!F$78 -> 0 | G10: =InpR!G$78 -> % | H10: =InpR!$M$78 -> 0 | J10: 0 | K10: 0 | L10: 0 | N10: 0
E11: =InpR!E$78 & " " & InpR!$N$5 -> RCV run-off rate 2022 | F11: =InpR!F$78 -> 0 | G11: =InpR!G$78 -> % | H11: =InpR!$N$78 -> 0 | J11: 0 | K11: 0 | L11: 0 | N11: 0
E12: =InpR!E$78 & " " & InpR!$O$5 -> RCV run-off rate 2023 | F12: =InpR!F$78 -> 0 | G12: =InpR!G$78 -> % | H12: =InpR!$O$78 -> 0 | J12: 0 | K12: 0 | L12: 0 | N12: 0
E13: =InpR!E$78 & " " & InpR!$P$5 -> RCV run-off rate 2024 | F13: =InpR!F$78 -> 0 | G13: =InpR!G$78 -> % | H13: =InpR!$P$78 -> 0 | J13: 0 | K13: 0 | L13: 0 | N13: 0
E14: =InpR!E$78 & " " & InpR!$Q$5 -> RCV run-off rate 2025 | F14: =InpR!F$78 -> 0 | G14: =InpR!G$78 -> % | H14: =InpR!$Q$78 -> 0 | J14: 0 | K14: 0 | L14: 0 | N14: 0
J15: 0 | K15: 0 | L15: 0
C16: Real RPI based WACC | J16: 0 | K16: 0 | L16: 0
E17: =InpR!E$85 & " " & InpR!$M$5 -> Real RPI based WACC 2021 | F17: =InpR!F$85 -> 0 | G17: =InpR!G$85 -> % | H17: =InpR!$M$85 -> 0 | J17: 0 | K17: 0 | L17: 0 | N17: 0
E18: =InpR!E$85 & " " & InpR!$N$5 -> Real RPI based WACC 2022 | F18: =InpR!F$85 -> 0 | G18: =InpR!G$85 -> % | H18: =InpR!$N$85 -> 0 | J18: 0 | K18: 0 | L18: 0 | N18: 0
E19: =InpR!E$85 & " " & InpR!$O$5 -> Real RPI based WACC 2023 | F19: =InpR!F$85 -> 0 | G19: =InpR!G$85 -> % | H19: =InpR!$O$85 -> 0 | J19: 0 | K19: 0 | L19: 0 | N19: 0
E20: =InpR!E$85 & " " & InpR!$P$5 -> Real RPI based WACC 2024 | F20: =InpR!F$85 -> 0 | G20: =InpR!G$85 -> % | H20: =InpR!$P$85 -> 0 | J20: 0 | K20: 0 | L20: 0 | N20: 0
E21: =InpR!E$85 & " " & InpR!$Q$5 -> Real RPI based WACC 2025 | F21: =InpR!F$85 -> 0 | G21: =InpR!G$85 -> % | H21: =InpR!$Q$85 -> 0 | J21: 0 | K21: 0 | L21: 0 | N21: 0
J22: =IF(ABS(K22) > TRK_TOL, 1, 0) -> 0 | K22: =H22 - INDEX(M22:BW22, $J$5) -> 0 | L22: =IF(ABS(K22) > TRK_TOL, IF(INDEX(M22:BW22, $J$5) = 0, 0, H22 / INDEX(M22:BW22, $J$5) - 1), 0) -> 0
C23: Real CPIH based WACC | J23: 0 | K23: 0 | L23: 0
E24: =InpR!E$92 & " " & InpR!$M$5 -> Real CPIH based WACC 2021 | F24: =InpR!F$92 -> 0 | G24: =InpR!G$92 -> % | H24: =InpR!$M$92 -> 0 | J24: 0 | K24: 0 | L24: 0 | N24: 0
E25: =InpR!E$92 & " " & InpR!$N$5 -> Real CPIH based WACC 2022 | F25: =InpR!F$92 -> 0 | G25: =InpR!G$92 -> % | H25: =InpR!$N$92 -> 0 | J25: 0 | K25: 0 | L25: 0 | N25: 0
E26: =InpR!E$92 & " " & InpR!$O$5 -> Real CPIH based WACC 2023 | F26: =InpR!F$92 -> 0 | G26: =InpR!G$92 -> % | H26: =InpR!$O$92 -> 0 | J26: 0 | K26: 0 | L26: 0 | N26: 0
E27: =InpR!E$92 & " " & InpR!$P$5 -> Real CPIH based WACC 2024 | F27: =InpR!F$92 -> 0 | G27: =InpR!G$92 -> % | H27: =InpR!$P$92 -> 0 | J27: 0 | K27: 0 | L27: 0 | N27: 0
E28: =InpR!E$92 & " " & InpR!$Q$5 -> Real CPIH based WACC 2025 | F28: =InpR!F$92 -> 0 | G28: =InpR!G$92 -> % | H28: =InpR!$Q$92 -> 0 | J28: 0 | K28: 0 | L28: 0 | N28: 0
J29: 0 | K29: 0 | L29: 0
A30: CALCS
C32: Forecast Indexation percentage | J32: =IF(ABS(K32) > TRK_TOL, 1, 0) -> 0 | K32: =H32 - INDEX(M32:BW32, $J$5) -> 0 | L32: =IF(ABS(K32) > TRK_TOL, IF(INDEX(M32:BW32, $J$5) = 0, 0, H32 / INDEX(M32:BW32, $J$5) - 1), 0) -> 0
E33: =Calcs!E$15 & " " & InpR!$M$5 -> Forecast Indexation percentage 2021 | F33: =Calcs!F$15 -> 0 | G33: =Calcs!G$15 -> % | H33: =Calcs!M$15 -> 0.02425809151 | J33: =IF(ABS(K33) > TRK_TOL, 1, 0) -> 1 | K33: 0.02425809151 | L33: 0 | N33: 0
E34: =Calcs!E$15 & " " & InpR!$N$5 -> Forecast Indexation percentage 2022 | F34: =Calcs!F$15 -> 0 | G34: =Calcs!G$15 -> % | H34: =Calcs!N$15 -> 0.02958764869 | J34: 1 | K34: 0.02958764869 | L34: 0 | N34: 0
E35: =Calcs!E$15 & " " & InpR!$O$5 -> Forecast Indexation percentage 2023 | F35: =Calcs!F$15 -> 0 | G35: =Calcs!G$15 -> % | H35: =Calcs!O$15 -> 0.03150368327 | J35: 1 | K35: 0.03150368327 | L35: 0 | N35: 0
E36: =Calcs!E$15 & " " & InpR!$P$5 -> Forecast Indexation percentage 2024 | F36: =Calcs!F$15 -> 0 | G36: =Calcs!G$15 -> % | H36: =Calcs!P$15 -> 0.032 | J36: 1 | K36: 0.032 | L36: 0 | N36: 0
E37: =Calcs!E$15 & " " & InpR!$Q$5 -> Forecast Indexation percentage 2025 | F37: =Calcs!F$15 -> 0 | G37: =Calcs!G$15 -> % | H37: =Calcs!Q$15 -> 0.032 | J37: 1 | K37: 0.032 | L37: 0 | N37: 0
J38: 0 | K38: 0 | L38: 0
C39: Cumulative CPIH inflation | J39: 0 | K39: 0 | L39: 0
E40: =Calcs!E$19 & " " & InpR!$M$5 -> Cumulative CPIH inflation 2021 | F40: =Calcs!F$19 -> 0 | G40: =Calcs!G$19 -> 0 | H40: =Calcs!M$19 -> 1.019833641 | J40: 1 | K40: 0.01983364056 | L40: 0.01983364056 | N40: 1
E41: =Calcs!E$19 & " " & InpR!$N$5 -> Cumulative CPIH inflation 2022 | F41: =Calcs!F$19 -> 0 | G41: =Calcs!G$19 -> 0 | H41: =Calcs!N$19 -> 1.040273129 | J41: 1 | K41: 0.04027312916 | L41: 0.04027312916 | N41: 1
E42: =Calcs!E$19 & " " & InpR!$O$5 -> Cumulative CPIH inflation 2023 | F42: =Calcs!F$19 -> 0 | G42: =Calcs!G$19 -> 0 | H42: =Calcs!O$19 -> 1.061860099 | J42: 1 | K42: 0.06186009859 | L42: 0.06186009859 | N42: 1
E43: =Calcs!E$19 & " " & InpR!$P$5 -> Cumulative CPIH inflation 2024 | F43: =Calcs!F$19 -> 0 | G43: =Calcs!G$19 -> 0 | H43: =Calcs!P$19 -> 1.084159161 | J43: 1 | K43: 0.08415916066 | L43: 0.08415916066 | N43: 1
E44: =Calcs!E$19 & " " & InpR!$Q$5 -> Cumulative CPIH inflation 2025 | F44: =Calcs!F$19 -> 0 | G44: =Calcs!G$19 -> 0 | H44: =Calcs!Q$19 -> 1.106926503 | J44: 1 | K44: 0.106926503 | L44: 0.106926503 | N44: 1
J45: 0 | K45: 0 | L45: 0
C46: Forecast RCV indexation | J46: 0 | K46: 0 | L46: 0
E47: =Calcs!E$24 & " " & InpR!$M$5 -> Forecast RCV indexation 2021 | F47: =Calcs!F$24 -> 0 | G47: =Calcs!G$24 -> £m | H47: =Calcs!M$24 -> 0 | J47: 0 | K47: 0 | L47: 0 | N47: 0
E48: =Calcs!E$24 & " " & InpR!$N$5 -> Forecast RCV indexation 2022 | F48: =Calcs!F$24 -> 0 | G48: =Calcs!G$24 -> £m | H48: =Calcs!N$24 -> 0 | J48: 0 | K48: 0 | L48: 0 | N48: 0
E49: =Calcs!E$24 & " " & InpR!$O$5 -> Forecast RCV indexation 2023 | F49: =Calcs!F$24 -> 0 | G49: =Calcs!G$24 -> £m | H49: =Calcs!O$24 -> 0 | J49: 0 | K49: 0 | L49: 0 | N49: 0
E50: =Calcs!E$24 & " " & InpR!$P$5 -> Forecast RCV indexation 2024 | F50: =Calcs!F$24 -> 0 | G50: =Calcs!G$24 -> £m | H50: =Calcs!P$24 -> 0 | J50: 0 | K50: 0 | L50: 0 | N50: 0
E51: =Calcs!E$24 & " " & InpR!$Q$5 -> Forecast RCV indexation 2025 | F51: =Calcs!F$24 -> 0 | G51: =Calcs!G$24 -> £m | H51: =Calcs!Q$24 -> 0 | J51: 0 | K51: 0 | L51: 0 | N51: 0
J52: 0 | K52: 0 | L52: 0
C53: Forecast RCV run-off | J53: 0 | K53: 0 | L53: 0
E54: =Calcs!E$29 & " " & InpR!$M$5 -> Forecast RCV run-off 2021 | F54: =Calcs!F$29 -> 0 | G54: =Calcs!G$29 -> £m | H54: =Calcs!M$29 -> 0 | J54: 0 | K54: 0 | L54: 0 | N54: 0
E55: =Calcs!E$29 & " " & InpR!$N$5 -> Forecast RCV run-off 2022 | F55: =Calcs!F$29 -> 0 | G55: =Calcs!G$29 -> £m | H55: =Calcs!N$29 -> 0 | J55: 0 | K55: 0 | L55: 0 | N55: 0
E56: =Calcs!E$29 & " " & InpR!$O$5 -> Forecast RCV run-off 2023 | F56: =Calcs!F$29 -> 0 | G56: =Calcs!G$29 -> £m | H56: =Calcs!O$29 -> 0 | J56: 0 | K56: 0 | L56: 0 | N56: 0
E57: =Calcs!E$29 & " " & InpR!$P$5 -> Forecast RCV run-off 2024 | F57: =Calcs!F$29 -> 0 | G57: =Calcs!G$29 -> £m | H57: =Calcs!P$29 -> 0 | J57: 0 | K57: 0 | L57: 0 | N57: 0
E58: =Calcs!E$29 & " " & InpR!$Q$5 -> Forecast RCV run-off 2025 | F58: =Calcs!F$29 -> 0 | G58: =Calcs!G$29 -> £m | H58: =Calcs!Q$29 -> 0 | J58: 0 | K58: 0 | L58: 0 | N58: 0
J59: 0 | K59: 0 | L59: 0
C60: Forecast nominal return | J60: 0 | K60: 0 | L60: 0
E61: =Calcs!E$48 & " " & InpR!$M$5 -> Forecast nominal return 2021 | F61: =Calcs!F$48 -> 0 | G61: =Calcs!G$48 -> £m | H61: =Calcs!M$48 -> 0 | J61: 0 | K61: 0 | L61: 0 | N61: 0
E62: =Calcs!E$48 & " " & InpR!$N$5 -> Forecast nominal return 2022 | F62: =Calcs!F$48 -> 0 | G62: =Calcs!G$48 -> £m | H62: =Calcs!N$48 -> 0 | J62: 0 | K62: 0 | L62: 0 | N62: 0
E63: =Calcs!E$48 & " " & InpR!$O$5 -> Forecast nominal return 2023 | F63: =Calcs!F$48 -> 0 | G63: =Calcs!G$48 -> £m | H63: =Calcs!O$48 -> 0 | J63: 0 | K63: 0 | L63: 0 | N63: 0
E64: =Calcs!E$48 & " " & InpR!$P$5 -> Forecast nominal return 2024 | F64: =Calcs!F$48 -> 0 | G64: =Calcs!G$48 -> £m | H64: =Calcs!P$48 -> 0 | J64: 0 | K64: 0 | L64: 0 | N64: 0
E65: =Calcs!E$48 & " " & InpR!$Q$5 -> Forecast nominal return 2025 | F65: =Calcs!F$48 -> 0 | G65: =Calcs!G$48 -> £m | H65: =Calcs!Q$48 -> 0 | J65: 0 | K65: 0 | L65: 0 | N65: 0
J66: 0 | K66: 0 | L66: 0
C67: Total Forecast revenue to company | J67: 0 | K67: 0 | L67: 0
E68: =Calcs!E$53 & " " & InpR!$M$5 -> Total Forecast revenue to company 2021 | F68: =Calcs!F$53 -> 0 | G68: =Calcs!G$53 -> £m | H68: =Calcs!M$53 -> 0 | J68: 0 | K68: 0 | L68: 0 | N68: 0
E69: =Calcs!E$53 & " " & InpR!$N$5 -> Total Forecast revenue to company 2022 | F69: =Calcs!F$53 -> 0 | G69: =Calcs!G$53 -> £m | H69: =Calcs!N$53 -> 0 | J69: 0 | K69: 0 | L69: 0 | N69: 0
E70: =Calcs!E$53 & " " & InpR!$O$5 -> Total Forecast revenue to company 2023 | F70: =Calcs!F$53 -> 0 | G70: =Calcs!G$53 -> £m | H70: =Calcs!O$53 -> 0 | J70: 0 | K70: 0 | L70: 0 | N70: 0
E71: =Calcs!E$53 & " " & InpR!$P$5 -> Total Forecast revenue to company 2024 | F71: =Calcs!F$53 -> 0 | G71: =Calcs!G$53 -> £m | H71: =Calcs!P$53 -> 0 | J71: 0 | K71: 0 | L71: 0 | N71: 0
E72: =Calcs!E$53 & " " & InpR!$Q$5 -> Total Forecast revenue to company 2025 | F72: =Calcs!F$53 -> 0 | G72: =Calcs!G$53 -> £m | H72: =Calcs!Q$53 -> 0 | J72: 0 | K72: 0 | L72: 0 | N72: 0
B74: What the company actually experienced | J74: =IF(ABS(K74) > TRK_TOL, 1, 0) -> 0 | K74: =H74 - INDEX(M74:BW74, $J$5) -> 0 | L74: =IF(ABS(K74) > TRK_TOL, IF(INDEX(M74:BW74, $J$5) = 0, 0, H74 / INDEX(M74:BW74, $J$5) - 1), 0) -> 0
C76: Actual nominal revenue | J76: 0 | K76: 0 | L76: 0
E77: =Calcs!E$83 & " " & InpR!$M$5 -> Actual nominal revenue 2021 | F77: =Calcs!F$83 -> 0 | G77: =Calcs!G$83 -> £m | H77: =Calcs!M$83 -> 0 | J77: 0 | K77: 0 | L77: 0 | N77: 0
E78: =Calcs!E$83 & " " & InpR!$N$5 -> Actual nominal revenue 2022 | F78: =Calcs!F$83 -> 0 | G78: =Calcs!G$83 -> £m | H78: =Calcs!N$83 -> 0 | J78: 0 | K78: 0 | L78: 0 | N78: 0
E79: =Calcs!E$83 & " " & InpR!$O$5 -> Actual nominal revenue 2023 | F79: =Calcs!F$83 -> 0 | G79: =Calcs!G$83 -> £m | H79: =Calcs!O$83 -> 0 | J79: 0 | K79: 0 | L79: 0 | N79: 0
E80: =Calcs!E$83 & " " & InpR!$P$5 -> Actual nominal revenue 2024 | F80: =Calcs!F$83 -> 0 | G80: =Calcs!G$83 -> £m | H80: =Calcs!P$83 -> 0 | J80: 0 | K80: 0 | L80: 0 | N80: 0
E81: =Calcs!E$83 & " " & InpR!$Q$5 -> Actual nominal revenue 2025 | F81: =Calcs!F$83 -> 0 | G81: =Calcs!G$83 -> £m | H81: =Calcs!Q$83 -> 0 | J81: 0 | K81: 0 | L81: 0 | N81: 0
J82: 0 | K82: 0 | L82: 0
B83: What the company should have experienced | J83: 0 | K83: 0 | L83: 0
J84: 0 | K84: 0 | L84: 0
C85: Actual Indexation percentage | J85: 0 | K85: 0 | L85: 0
E86: =Calcs!E$92 & " " & InpR!$M$5 -> Actual Indexation percentage 2021 | F86: =Calcs!F$92 -> 0 | G86: =Calcs!G$92 -> 0 | H86: =Calcs!M$92 -> 0.01983364056 | J86: 1 | K86: 0.01983364056 | L86: 0 | N86: 0
E87: =Calcs!E$92 & " " & InpR!$N$5 -> Actual Indexation percentage 2022 | F87: =Calcs!F$92 -> 0 | G87: =Calcs!G$92 -> 0 | H87: =Calcs!N$92 -> 0.02004198311 | J87: 1 | K87: 0.02004198311 | L87: 0 | N87: 0
E88: =Calcs!E$92 & " " & InpR!$O$5 -> Actual Indexation percentage 2023 | F88: =Calcs!F$92 -> 0 | G88: =Calcs!G$92 -> 0 | H88: =Calcs!O$92 -> 0.0207512516 | J88: 1 | K88: 0.0207512516 | L88: 0 | N88: 0
E89: =Calcs!E$92 & " " & InpR!$P$5 -> Actual Indexation percentage 2024 | F89: =Calcs!F$92 -> 0 | G89: =Calcs!G$92 -> 0 | H89: =Calcs!P$92 -> 0.021 | J89: 1 | K89: 0.021 | L89: 0 | N89: 0
E90: =Calcs!E$92 & " " & InpR!$Q$5 -> Actual Indexation percentage 2025 | F90: =Calcs!F$92 -> 0 | G90: =Calcs!G$92 -> 0 | H90: =Calcs!Q$92 -> 0.021 | J90: 1 | K90: 0.021 | L90: 0 | N90: 0
J91: 0 | K91: 0 | L91: 0
C92: Actual RCV indexation | J92: 0 | K92: 0 | L92: 0
E93: =Calcs!E$97 & " " & InpR!$M$5 -> Actual RCV indexation 2021 | F93: =Calcs!F$97 -> 0 | G93: =Calcs!G$97 -> £m | H93: =Calcs!M$97 -> 0 | J93: 0 | K93: 0 | L93: 0 | N93: 0
E94: =Calcs!E$97 & " " & InpR!$N$5 -> Actual RCV indexation 2022 | F94: =Calcs!F$97 -> 0 | G94: =Calcs!G$97 -> £m | H94: =Calcs!N$97 -> 0 | J94: 0 | K94: 0 | L94: 0 | N94: 0
E95: =Calcs!E$97 & " " & InpR!$O$5 -> Actual RCV indexation 2023 | F95: =Calcs!F$97 -> 0 | G95: =Calcs!G$97 -> £m | H95: =Calcs!O$97 -> 0 | J95: 0 | K95: 0 | L95: 0 | N95: 0
E96: =Calcs!E$97 & " " & InpR!$P$5 -> Actual RCV indexation 2024 | F96: =Calcs!F$97 -> 0 | G96: =Calcs!G$97 -> £m | H96: =Calcs!P$97 -> 0 | J96: 0 | K96: 0 | L96: 0 | N96: 0
E97: =Calcs!E$97 & " " & InpR!$Q$5 -> Actual RCV indexation 2025 | F97: =Calcs!F$97 -> 0 | G97: =Calcs!G$97 -> £m | H97: =Calcs!Q$97 -> 0 | J97: 0 | K97: 0 | L97: 0 | N97: 0
J98: 0 | K98: 0 | L98: 0
C99: RCV run-off company should have received | J99: 0 | K99: 0 | L99: 0
E100: =Calcs!E$102 & " " & InpR!$M$5 -> RCV run-off company should have received 2021 | F100: =Calcs!F$102 -> 0 | G100: =Calcs!G$102 -> £m | H100: =Calcs!M$102 -> 0 | J100: 0 | K100: 0 | L100: 0 | N100: 0
E101: =Calcs!E$102 & " " & InpR!$N$5 -> RCV run-off company should have received 2022 | F101: =Calcs!F$102 -> 0 | G101: =Calcs!G$102 -> £m | H101: =Calcs!N$102 -> 0 | J101: 0 | K101: 0 | L101: 0 | N101: 0
E102: =Calcs!E$102 & " " & InpR!$O$5 -> RCV run-off company should have received 2023 | F102: =Calcs!F$102 -> 0 | G102: =Calcs!G$102 -> £m | H102: =Calcs!O$102 -> 0 | J102: 0 | K102: 0 | L102: 0 | N102: 0
E103: =Calcs!E$102 & " " & InpR!$P$5 -> RCV run-off company should have received 2024 | F103: =Calcs!F$102 -> 0 | G103: =Calcs!G$102 -> £m | H103: =Calcs!P$102 -> 0 | J103: 0 | K103: 0 | L103: 0 | N103: 0
E104: =Calcs!E$102 & " " & InpR!$Q$5 -> RCV run-off company should have received 2025 | F104: =Calcs!F$102 -> 0 | G104: =Calcs!G$102 -> £m | H104: =Calcs!Q$102 -> 0 | J104: 0 | K104: 0 | L104: 0 | N104: 0
J105: 0 | K105: 0 | L105: 0
C106: Nominal return company should have received | J106: 0 | K106: 0 | L106: 0
E107: =Calcs!E$121 & " " & InpR!$M$5 -> Nominal return company should have received 2021 | F107: =Calcs!F$121 -> 0 | G107: =Calcs!G$121 -> £m | H107: =Calcs!M$121 -> 0 | J107: 0 | K107: 0 | L107: 0 | N107: 0
E108: =Calcs!E$121 & " " & InpR!$N$5 -> Nominal return company should have received 2022 | F108: =Calcs!F$121 -> 0 | G108: =Calcs!G$121 -> £m | H108: =Calcs!N$121 -> 0 | J108: 0 | K108: 0 | L108: 0 | N108: 0
E109: =Calcs!E$121 & " " & InpR!$O$5 -> Nominal return company should have received 2023 | F109: =Calcs!F$121 -> 0 | G109: =Calcs!G$121 -> £m | H109: =Calcs!O$121 -> 0 | J109: 0 | K109: 0 | L109: 0 | N109: 0
E110: =Calcs!E$121 & " " & InpR!$P$5 -> Nominal return company should have received 2024 | F110: =Calcs!F$121 -> 0 | G110: =Calcs!G$121 -> £m | H110: =Calcs!P$121 -> 0 | J110: 0 | K110: 0 | L110: 0 | N110: 0
E111: =Calcs!E$121 & " " & InpR!$Q$5 -> Nominal return company should have received 2025 | F111: =Calcs!F$121 -> 0 | G111: =Calcs!G$121 -> £m | H111: =Calcs!Q$121 -> 0 | J111: 0 | K111: 0 | L111: 0 | N111: 0
J112: 0 | K112: 0 | L112: 0
C113: Total revenue company should have received | J113: 0 | K113: 0 | L113: 0
E114: =Calcs!E$130 & " " & InpR!$M$5 -> Total nominal revenue company should have received 2021 | F114: =Calcs!F$130 -> 0 | G114: =Calcs!G$130 -> £m | H114: =Calcs!M$130 -> 0 | J114: 0 | K114: 0 | L114: 0 | N114: 0
E115: =Calcs!E$130 & " " & InpR!$N$5 -> Total nominal revenue company should have received 2022 | F115: =Calcs!F$130 -> 0 | G115: =Calcs!G$130 -> £m | H115: =Calcs!N$130 -> 0 | J115: 0 | K115: 0 | L115: 0 | N115: 0
E116: =Calcs!E$130 & " " & InpR!$O$5 -> Total nominal revenue company should have received 2023 | F116: =Calcs!F$130 -> 0 | G116: =Calcs!G$130 -> £m | H116: =Calcs!O$130 -> 0 | J116: 0 | K116: 0 | L116: 0 | N116: 0
E117: =Calcs!E$130 & " " & InpR!$P$5 -> Total nominal revenue company should have received 2024 | F117: =Calcs!F$130 -> 0 | G117: =Calcs!G$130 -> £m | H117: =Calcs!P$130 -> 0 | J117: 0 | K117: 0 | L117: 0 | N117: 0
E118: =Calcs!E$130 & " " & InpR!$Q$5 -> Total nominal revenue company should have received 2025 | F118: =Calcs!F$130 -> 0 | G118: =Calcs!G$130 -> £m | H118: =Calcs!Q$130 -> 0 | J118: 0 | K118: 0 | L118: 0 | N118: 0
J119: 0 | K119: 0 | L119: 0
B120: True Up | J120: =IF(ABS(K120) > TRK_TOL, 1, 0) -> 0 | K120: =H120 - INDEX(M120:BW120, $J$5) -> 0 | L120: =IF(ABS(K120) > TRK_TOL, IF(INDEX(M120:BW120, $J$5) = 0, 0, H120 / INDEX(M120:BW120, $J$5) - 1), 0) -> 0
J121: 0 | K121: 0 | L121: 0
C122: True up RCV indexation 2021 | J122: 0 | K122: 0 | L122: 0
E123: =Calcs!E$152 & " " & InpR!$M$5 -> True up RCV indexation 2021 | F123: =Calcs!F$152 -> 0 | G123: =Calcs!G$152 -> £m | H123: =Calcs!M$152 -> 0 | J123: 0 | K123: 0 | L123: 0 | N123: 0
E124: =Calcs!E$152 & " " & InpR!$N$5 -> True up RCV indexation 2022 | F124: =Calcs!F$152 -> 0 | G124: =Calcs!G$152 -> £m | H124: =Calcs!N$152 -> 0 | J124: 0 | K124: 0 | L124: 0 | N124: 0
E125: =Calcs!E$152 & " " & InpR!$O$5 -> True up RCV indexation 2023 | F125: =Calcs!F$152 -> 0 | G125: =Calcs!G$152 -> £m | H125: =Calcs!O$152 -> 0 | J125: 0 | K125: 0 | L125: 0 | N125: 0
E126: =Calcs!E$152 & " " & InpR!$P$5 -> True up RCV indexation 2024 | F126: =Calcs!F$152 -> 0 | G126: =Calcs!G$152 -> £m | H126: =Calcs!P$152 -> 0 | J126: 0 | K126: 0 | L126: 0 | N126: 0
E127: =Calcs!E$152 & " " & InpR!$Q$5 -> True up RCV indexation 2025 | F127: =Calcs!F$152 -> 0 | G127: =Calcs!G$152 -> £m | H127: =Calcs!Q$152 -> 0 | J127: 0 | K127: 0 | L127: 0 | N127: 0
J128: 0 | K128: 0 | L128: 0
C129: True up RCV run-off | J129: 0 | K129: 0 | L129: 0
E130: =Calcs!E$157 & " " & InpR!$M$5 -> True up Nominal RCV run-off 2021 | F130: =Calcs!F$157 -> 0 | G130: =Calcs!G$157 -> £m | H130: =Calcs!M$157 -> 0 | J130: 0 | K130: 0 | L130: 0 | N130: 0
E131: =Calcs!E$157 & " " & InpR!$N$5 -> True up Nominal RCV run-off 2022 | F131: =Calcs!F$157 -> 0 | G131: =Calcs!G$157 -> £m | H131: =Calcs!N$157 -> 0 | J131: 0 | K131: 0 | L131: 0 | N131: 0
E132: =Calcs!E$157 & " " & InpR!$O$5 -> True up Nominal RCV run-off 2023 | F132: =Calcs!F$157 -> 0 | G132: =Calcs!G$157 -> £m | H132: =Calcs!O$157 -> 0 | J132: 0 | K132: 0 | L132: 0 | N132: 0
E133: =Calcs!E$157 & " " & InpR!$P$5 -> True up Nominal RCV run-off 2024 | F133: =Calcs!F$157 -> 0 | G133: =Calcs!G$157 -> £m | H133: =Calcs!P$157 -> 0 | J133: 0 | K133: 0 | L133: 0 | N133: 0
E134: =Calcs!E$157 & " " & InpR!$Q$5 -> True up Nominal RCV run-off 2025 | F134: =Calcs!F$157 -> 0 | G134: =Calcs!G$157 -> £m | H134: =Calcs!Q$157 -> 0 | J134: 0 | K134: 0 | L134: 0 | N134: 0
J135: 0 | K135: 0 | L135: 0
C136: True up nominal return | J136: 0 | K136: 0 | L136: 0
E137: =Calcs!E$175 & " " & InpR!$M$5 -> True up Nominal return 2021 | F137: =Calcs!F$175 -> 0 | G137: =Calcs!G$175 -> £m | H137: =Calcs!M$175 -> 0 | J137: 0 | K137: 0 | L137: 0 | N137: 0
E138: =Calcs!E$175 & " " & InpR!$N$5 -> True up Nominal return 2022 | F138: =Calcs!F$175 -> 0 | G138: =Calcs!G$175 -> £m | H138: =Calcs!N$175 -> 0 | J138: 0 | K138: 0 | L138: 0 | N138: 0
E139: =Calcs!E$175 & " " & InpR!$O$5 -> True up Nominal return 2023 | F139: =Calcs!F$175 -> 0 | G139: =Calcs!G$175 -> £m | H139: =Calcs!O$175 -> 0 | J139: 0 | K139: 0 | L139: 0 | N139: 0
E140: =Calcs!E$175 & " " & InpR!$P$5 -> True up Nominal return 2024 | F140: =Calcs!F$175 -> 0 | G140: =Calcs!G$175 -> £m | H140: =Calcs!P$175 -> 0 | J140: 0 | K140: 0 | L140: 0 | N140: 0
E141: =Calcs!E$175 & " " & InpR!$Q$5 -> True up Nominal return 2025 | F141: =Calcs!F$175 -> 0 | G141: =Calcs!G$175 -> £m | H141: =Calcs!Q$175 -> 0 | J141: 0 | K141: 0 | L141: 0 | N141: 0
J142: 0 | K142: 0 | L142: 0
C143: Value of True up | J143: 0 | K143: 0 | L143: 0
E144: =Calcs!E$183 & " " & InpR!$M$5 -> Value of True up nominal 2021 | F144: =Calcs!F$183 -> 0 | G144: =Calcs!G$183 -> £m | H144: =Calcs!M$183 -> 0 | J144: 0 | K144: 0 | L144: 0 | N144: 0
E145: =Calcs!E$183 & " " & InpR!$N$5 -> Value of True up nominal 2022 | F145: =Calcs!F$183 -> 0 | G145: =Calcs!G$183 -> £m | H145: =Calcs!N$183 -> 0 | J145: 0 | K145: 0 | L145: 0 | N145: 0
E146: =Calcs!E$183 & " " & InpR!$O$5 -> Value of True up nominal 2023 | F146: =Calcs!F$183 -> 0 | G146: =Calcs!G$183 -> £m | H146: =Calcs!O$183 -> 0 | J146: 0 | K146: 0 | L146: 0 | N146: 0
E147: =Calcs!E$183 & " " & InpR!$P$5 -> Value of True up nominal 2024 | F147: =Calcs!F$183 -> 0 | G147: =Calcs!G$183 -> £m | H147: =Calcs!P$183 -> 0 | J147: 0 | K147: 0 | L147: 0 | N147: 0
E148: =Calcs!E$183 & " " & InpR!$Q$5 -> Value of True up nominal 2025 | F148: =Calcs!F$183 -> 0 | G148: =Calcs!G$183 -> £m | H148: =Calcs!Q$183 -> 0 | J148: 0 | K148: 0 | L148: 0 | N148: 0
J149: 0 | K149: =H149 - INDEX(M149:BW149, $J$5) -> 0 | L149: =IF(ABS(K149) > TRK_TOL, IF(INDEX(M149:BW149, $J$5) = 0, 0, H149 / INDEX(M149:BW149, $J$5) - 1), 0) -> 0
C150: True-up correctly calculates revenue adjustment | J150: 0
E151: =Calcs!E$187 & " " & InpR!$M$5 -> True-up correctly calculates revenue adjustment 2021 | F151: =Calcs!F$187 -> 0 | G151: =Calcs!G$187 -> check | H151: =Calcs!M$187 -> 0 | J151: 0 | K151: 0 | L151: 0 | N151: 0
E152: =Calcs!E$187 & " " & InpR!$N$5 -> True-up correctly calculates revenue adjustment 2022 | F152: =Calcs!F$187 -> 0 | G152: =Calcs!G$187 -> check | H152: =Calcs!N$187 -> 0 | J152: 0 | K152: 0 | L152: 0 | N152: 0
E153: =Calcs!E$187 & " " & InpR!$O$5 -> True-up correctly calculates revenue adjustment 2023 | F153: =Calcs!F$187 -> 0 | G153: =Calcs!G$187 -> check | H153: =Calcs!O$187 -> 0 | J153: 0 | K153: 0 | L153: 0 | N153: 0
E154: =Calcs!E$187 & " " & InpR!$P$5 -> True-up correctly calculates revenue adjustment 2024 | F154: =Calcs!F$187 -> 0 | G154: =Calcs!G$187 -> check | H154: =Calcs!P$187 -> 0 | J154: 0 | K154: 0 | L154: 0 | N154: 0
E155: =Calcs!E$187 & " " & InpR!$Q$5 -> True-up correctly calculates revenue adjustment 2025 | F155: =Calcs!F$187 -> 0 | G155: =Calcs!G$187 -> check | H155: =Calcs!Q$187 -> 0 | J155: 0 | K155: 0 | L155: 0 | N155: 0
J156: =IF(ABS(K156) > TRK_TOL, 1, 0) -> 0 | K156: 0 | L156: 0
A157: INFO ONLY
E159: Date | H159: =TODAY() -> 2020-03-03 | N159: 2018-03-06
E160: Time | H160: =NOW() -> 43893.69122 | N160: 43165.61362
E161: File | H161: =MID(CELL("filename",$A$1), SEARCH("[", CELL("filename",$A$1)) + 1, SEARCH("]", CELL("filename",$A$1)) - SEARCH("[", CELL("filename",$A$1)) - 1) -> RPI-CPIH-wedge-true-up-model-February-2020.xlsm | N161: RPI-CPIH-wedge-true-up-model March 2018.xlsm
E162: [do not delete row] | J162: range end
E164: Comment: Key input and logic changes | N164: No test data
E165: Comment: Key result changes
A168: End of sheet

Sheet Checks
A1: =RIGHT(CELL("filename", $A$1), LEN(CELL("filename", $A$1)) - SEARCH("]", CELL("filename", $A$1))) -> Checks
E2: =Time!E$23 -> Model Period END | F2: =Checks!$F$9 -> 0 | G2: Error chks | J2: =Time!J$23 -> 2018-03-31 | K2: =Time!K$23 -> 2019-03-31 | L2: =Time!L$23 -> 2020-03-31 | M2: =Time!M$23 -> 2021-03-31 | N2: =Time!N$23 -> 2022-03-31 | O2: =Time!O$23 -> 2023-03-31 | P2: =Time!P$23 -> 2024-03-31 | Q2: =Time!Q$23 -> 2025-03-31 | R2: =Time!R$23 -> 2026-03-31
E3: =Time!E$59 -> Pre Forecast vs Forecast | F3: =InpC!$J$10 -> 0 | G3: Input Error | J3: =Time!J$59 -> Pre Fcst | K3: =Time!K$59 -> Pre Fcst | L3: =Time!L$59 -> Pre Fcst | M3: =Time!M$59 -> Forecast | N3: =Time!N$59 -> Forecast | O3: =Time!O$59 -> Forecast | P3: =Time!P$59 -> Forecast | Q3: =Time!Q$59 -> Forecast | R3: =Time!R$59 -> Post-Fcst
E4: =Time!E$86 -> Financial Year Ending | F4: =Checks!$F$18 -> 15 | G4: Track checks | J4: =Time!J$86 -> 2018 | K4: =Time!K$86 -> 2019 | L4: =Time!L$86 -> 2020 | M4: =Time!M$86 -> 2021 | N4: =Time!N$86 -> 2022 | O4: =Time!O$86 -> 2023 | P4: =Time!P$86 -> 2024 | Q4: =Time!Q$86 -> 2025 | R4: =Time!R$86 -> 2026
E5: =Time!E$11 -> Model column counter | F5: Constant | G5: Unit | H5: Total | J5: =Time!J$11 -> 1 | K5: =Time!K$11 -> 2 | L5: =Time!L$11 -> 3 | M5: =Time!M$11 -> 4 | N5: =Time!N$11 -> 5 | O5: =Time!O$11 -> 6 | P5: =Time!P$11 -> 7 | Q5: =Time!Q$11 -> 8 | R5: =Time!R$11 -> 9
A7: CHECK SUMMARY
E9: Total Checks | F9: =SUM(F11:F16) -> 0 | G9: check
E11: [do not delete this row] | F11: [range start]
E13: =Time!E$78 -> Modelling Period Check | F13: =Time!F$78 -> 0 | G13: =Time!G$78 -> check
E14: =Calcs!E187 -> True-up correctly calculates revenue adjustment | F14: =Calcs!F187 -> 0 | G14: =Calcs!G187 -> check
E16: [do not delete this row] | F16: [range ends]
E18: Total track changes | F18: =Track!$J$2 -> 15 | G18: check
A20: END
